{"text_format":"1","workbook":"xlsx","n_sheets":18,"sheets":["tarifaPro","Üdvözlő","Dijkalkdoc","Díjszámítás term.személy szerz","részletező term.személy szerz","Díjszámítás jogi szem.szerz","részletező jogi szem.szerz","Ajánlat","Nyilatkozat","Biztosítotti nyilatkozat","Általános Biztosítási Feltétele","Különös Biztosítási Feltételek","Szolgáltatási limitek","Ügyvféltájékoztató","Kórházi csomag Különös Bizt. Fe","Hope Plusz Különös Bizt. Felt.","Záradék előzménybetegséghez","Záradék Terhesgondozás extra"],"not_rendered":{"charts":0,"images":57,"macros":1,"external_links":1,"defined_names":242,"comments":5,"pivot_tables":0},"unopened":[],"bounds":{"document_bytes":16777216,"sheet_cells":100000,"rows_first":2000,"rows_last":500,"rows_between":2000,"halvings":0,"cell_chars":16384,"cell_head_chars":4096},"cells_cut":0,"cells_raw":0,"read":"whole","date_system":"1900"}

{"sheet":"tarifaPro","index":0,"n_rows":158,"n_cols":17,"rows_kept":158,"cut":false,"hidden":true,"merged":[]}
[null,2,3,4,5,6,7,8,9,10,11,12]
["életkorok","250 000 limit, szűrőv. nélkül","250 000 limit, közepes szűrővizsgálattal ","500 000 limit, szűrőv. nélkül","500 000 limit, közepes szűrővizsgálattal","Limit nélkül, szűrővizsgálat nélkül","Limit nélkül, közepes szűrővizsgálattal","módosított Hospital Plusz","Hope Plusz Ezüst csomag","Hope Plusz Arany csomag","Személyreszabott szűrővizsgálat \n(500 eft limit csomaghoz)","Személyreszabott szűrővizsgálat \n(limit nélküli csomaghoz)",null,"Gyerek korházi csomag","Gyerek kiterjesztés (250 000 limit, szűrőv. nélkül)","Családi csomag (csak cafeteria szerződés esetén)","Terhesgondozás extra"]
[18,36000,66000,42000,70800,55200,81360,36000,4800,14400,125760,136320,null,30000,30000,150000]
[19,36000,66000,42000,70800,55200,81360,36000,4800,14400,125760,136320]
[20,36000,66000,42000,70800,55200,81360,36000,4800,14400,125760,136320]
[21,36000,66000,42000,70800,55200,81360,36000,4800,14400,125760,136320]
[22,36000,66000,42000,70800,55200,81360,36000,4800,14400,125760,136320]
[23,36000,66000,42000,70800,55200,81360,36000,4800,14400,125760,136320]
[24,36000,66000,42000,70800,55200,81360,36000,4800,14400,125760,136320]
[25,36000,66000,42000,70800,55200,81360,36000,4800,14400,125760,136320]
[26,36000,66000,42000,70800,55200,81360,46800,5300,15300,125760,136320]
[27,36000,66000,42000,70800,55200,81360,46800,5300,15300,125760,136320]
[28,36000,66000,42000,70800,55200,81360,46800,5300,15300,125760,136320]
[29,36000,66000,42000,70800,55200,81360,46800,5300,15300,125760,136320]
[30,36000,66000,42000,70800,55200,81360,46800,5300,15300,125760,136320]
[31,42000,70800,48000,75600,62400,87120,62400,8400,25200,131520,143040]
[32,42000,70800,48000,75600,62400,87120,62400,8400,25200,131520,143040]
[33,42000,70800,48000,75600,62400,87120,62400,8400,25200,131520,143040]
[34,42000,70800,48000,75600,62400,87120,62400,8400,25200,131520,143040]
[35,42000,70800,48000,75600,62400,87120,62400,8400,25200,131520,143040]
[36,46800,74400,52800,80400,70800,93840,76800,13900,40380,134400,148800]
[37,46800,74400,52800,80400,70800,93840,76800,13900,40380,134400,148800]
[38,46800,74400,52800,80400,70800,93840,76800,13900,40380,134400,148800]
[39,46800,74400,52800,80400,70800,93840,76800,13900,40380,134400,148800]
[40,46800,74400,52800,80400,70800,93840,76800,13900,40380,134400,148800]
[41,51600,79200,58800,85200,78000,99600,103200,27600,82800,139200,154560]
[42,51600,79200,58800,85200,78000,99600,103200,27600,82800,139200,154560]
[43,51600,79200,58800,85200,78000,99600,103200,27600,82800,139200,154560]
[44,51600,79200,58800,85200,78000,99600,103200,27600,82800,139200,154560]
[45,51600,79200,58800,85200,78000,99600,103200,27600,82800,139200,154560]
[46,57000,84600,64200,90600,83400,103920,112800,38640,115320,143520,158880]
[47,57000,84600,64200,90600,83400,103920,112800,38640,115320,143520,158880]
[48,57000,84600,64200,90600,83400,103920,112800,38640,115320,143520,158880]
[49,57000,84600,64200,90600,83400,103920,112800,38640,115320,143520,158880]
[50,57000,84600,64200,90600,83400,103920,112800,38640,115320,143520,158880]
[51,62400,86400,70800,94800,93600,112080,123600,58800,176400,148800,167040]
[52,62400,86400,70800,94800,93600,112080,123600,58800,176400,148800,167040]
[53,62400,86400,70800,94800,93600,112080,123600,58800,176400,148800,167040]
[54,62400,86400,70800,94800,93600,112080,123600,58800,176400,148800,167040]
[55,62400,86400,70800,94800,93600,112080,123600,58800,176400,148800,167040]
[56,62400,86400,70800,94800,93600,112080,138000,75460,225780,148800,167040]
[57,62400,86400,70800,94800,93600,112080,138000,75460,225780,148800,167040]
[58,62400,86400,70800,94800,93600,112080,138000,75460,225780,148800,167040]
[59,62400,86400,70800,94800,93600,112080,138000,75460,225780,148800,167040]
[60,62400,86400,70800,94800,93600,112080,138000,75460,225780,148800,167040]
[61,67200,91200,76800,98400,102000,118800,158400,91500,273900,153600,173760]
[62,67200,91200,76800,98400,102000,118800,158400,91500,273900,153600,173760]
[63,67200,91200,76800,98400,102000,118800,158400,91500,273900,153600,173760]
[64,67200,91200,76800,98400,102000,118800,158400,91500,273900,153600,173760]
[65,67200,91200,76800,98400,102000,118800,158400,91500,273900,153600,173760]
[66,67200,91200,76800,98400,102000,118800,178800,107540,322020,153600,173760]
[67,67200,91200,76800,98400,102000,118800,178800,107540,322020,153600,173760]
[68,67200,91200,76800,98400,102000,118800,178800,107540,322020,153600,173760]
[69,67200,91200,76800,98400,102000,118800,178800,107540,322020,153600,173760]
[]
[]
[]
["létszám","kedvezmény"]
[1,1.4]
[2,1.25]
[3,1.1000000000000001]
[4,1.1000000000000001]
[5,1.1000000000000001]
[6,1]
[7,1]
[8,1]
[9,1]
[10,0.95]
[11,0.95]
[12,0.95]
[13,0.95]
[14,0.95]
[15,0.95]
[16,0.95]
[17,0.95]
[18,0.95]
[19,0.95]
[20,0.95]
[21,0.95]
[22,0.95]
[23,0.95]
[24,0.95]
[25,0.95]
[26,0.95]
[27,0.95]
[28,0.95]
[29,0.95]
[30,0.95]
[31,0.95]
[32,0.95]
[33,0.95]
[34,0.95]
[35,0.95]
[36,0.95]
[37,0.95]
[38,0.95]
[39,0.95]
[40,0.95]
[41,0.95]
[42,0.95]
[43,0.95]
[44,0.95]
[45,0.95]
[46,0.95]
[47,0.95]
[48,0.95]
[49,0.95]
[50,0.9]
[51,0.9]
[52,0.9]
[53,0.9]
[54,0.9]
[55,0.9]
[56,0.9]
[57,0.9]
[58,0.9]
[59,0.9]
[60,0.9]
[61,0.9]
[62,0.9]
[63,0.9]
[64,0.9]
[65,0.9]
[66,0.9]
[67,0.9]
[68,0.9]
[69,0.9]
[70,0.9]
[71,0.9]
[72,0.9]
[73,0.9]
[74,0.9]
[75,0.9]
[76,0.9]
[77,0.9]
[78,0.9]
[79,0.9]
[80,0.9]
[81,0.9]
[82,0.9]
[83,0.9]
[84,0.9]
[85,0.9]
[86,0.9]
[87,0.9]
[88,0.9]
[89,0.9]
[90,0.9]
[91,0.9]
[92,0.9]
[93,0.9]
[94,0.9]
[95,0.9]
[96,0.9]
[97,0.9]
[98,0.9]
[99,0.9]
[100,0.8]

{"sheet":"Üdvözlő","index":1,"n_rows":73,"n_cols":6,"rows_kept":73,"cut":false,"hidden":false,"merged":[[9,2,9,8],[10,3,10,7],[72,2,72,3],[71,2,71,3]]}
[]
[]
[]
[]
[]
[]
[]
[]
[]
[null,null,"PrivateMed Pro"]
[null,null,null,"csoportos egészségbiztosítás"]
[]
[]
[]
[]
[]
[]
[]
[]
[]
[]
[]
[]
[]
[]
[]
[]
[]
[]
[]
[]
[]
[]
[]
[]
[]
[]
[]
[]
[]
[]
[]
[]
[]
[]
[]
[]
[]
[]
[]
[]
[]
[]
[]
[]
[]
[]
[]
[]
[]
[]
[]
[]
[]
[]
[]
[]
[]
[]
[]
[]
[null,"Verzió","Érvényességi Dátum",null,null,"Jelszó"]
[null,"v1.4","2018-02-28",null,null,"PMPro"]

{"sheet":"Dijkalkdoc","index":2,"n_rows":0,"n_cols":0,"rows_kept":0,"cut":false,"hidden":true,"merged":[]}

{"sheet":"Díjszámítás term.személy szerz","index":3,"n_rows":113,"n_cols":44,"rows_kept":113,"cut":false,"hidden":true,"merged":[[98,24,98,26],[96,24,96,26],[89,24,89,26],[99,31,99,34],[84,27,84,30],[85,27,85,30],[88,27,88,30],[91,27,91,30],[89,38,89,40],[90,31,90,34],[91,31,91,34],[87,31,87,34],[87,27,87,30],[99,35,99,37],[90,38,90,40],[96,38,96,40],[97,38,97,40],[97,31,97,34],[96,31,96,34],[96,35,96,37],[97,35,97,37],[112,10,112,13],[112,6,112,8],[89,2,89,4],[84,19,84,20],[86,2,86,3],[15,1,15,7],[25,1,25,7],[24,17,24,22],[23,8,23,11],[15,8,15,11],[16,8,16,11],[20,18,20,23],[84,14,84,15],[20,8,20,11],[30,9,30,12],[34,2,34,12],[33,9,33,11],[33,13,33,14],[23,12,23,17],[18,8,18,11],[15,12,15,17],[33,3,33,7],[17,8,17,11],[84,11,84,13],[4,20,4,21],[4,5,4,6],[4,13,4,14],[11,1,11,7],[8,1,8,7],[10,1,10,7],[9,1,9,7],[9,12,9,17],[8,8,8,11],[9,8,9,11],[11,8,11,11],[8,18,8,23],[10,8,10,11],[10,12,10,17],[11,12,11,17],[9,18,9,23],[19,8,19,11],[19,12,19,17],[21,1,21,7],[10,18,10,23],[11,18,11,23],[8,12,8,17],[14,28,14,31],[22,28,22,31],[15,24,15,27],[11,28,11,31],[11,24,11,27],[12,24,12,27],[14,24,14,27],[13,18,13,23],[18,24,18,27],[15,18,15,23],[16,18,16,23],[14,18,14,23],[12,18,12,23],[14,12,14,17],[17,24,17,27],[18,18,18,23],[20,24,20,27],[21,24,21,27],[14,8,14,11],[14,1,14,7],[12,1,12,7],[11,32,11,38],[12,32,12,38],[13,32,13,38],[13,24,13,27],[12,28,12,31],[13,28,13,31],[14,32,14,38],[13,1,13,7],[12,8,12,11],[13,8,13,11],[12,12,12,17],[13,12,13,17],[8,32,8,38],[8,28,8,31],[10,24,10,27],[8,24,8,27],[9,28,9,31],[10,28,10,31],[9,24,9,27],[99,27,99,30],[99,38,99,40],[98,35,98,37],[98,27,98,30],[98,38,98,40],[98,31,98,34],[95,24,95,26],[99,24,99,26],[32,23,32,28],[32,30,32,31],[86,27,86,30],[85,31,85,34],[86,31,86,34],[89,27,89,30],[24,28,24,32],[26,33,26,38],[25,33,25,38],[87,41,87,42],[88,35,88,37],[86,38,86,40],[89,41,89,42],[88,41,88,42],[89,35,89,37],[85,38,85,40],[84,21,84,23],[9,32,9,38],[10,32,10,38],[16,24,16,27],[17,18,17,23],[19,18,19,23],[19,24,19,27],[88,24,88,26],[87,24,87,26],[38,21,38,30],[34,24,34,34],[36,18,36,28],[89,31,89,34],[87,35,87,37],[22,32,22,38],[23,32,23,38],[88,31,88,34],[90,41,90,42],[94,38,94,40],[91,38,91,40],[92,38,92,40],[95,31,95,34],[94,31,94,34],[15,32,15,38],[16,32,16,38],[21,32,21,38],[16,28,16,31],[20,28,20,31],[15,28,15,31],[17,32,17,38],[18,32,18,38],[19,32,19,38],[20,32,20,38],[17,28,17,31],[18,28,18,31],[19,28,19,31],[21,28,21,31],[95,38,95,40],[85,41,85,42],[86,41,86,42],[85,35,85,37],[16,12,16,17],[25,8,25,12],[25,13,25,16],[33,16,33,17],[21,8,21,11],[22,12,22,17],[23,18,23,23],[22,18,22,23],[23,24,23,27],[22,24,22,27],[24,23,24,27],[29,6,29,12],[23,1,23,7],[32,18,32,21],[16,1,16,7],[17,1,17,7],[22,1,22,7],[18,1,18,7],[19,1,19,7],[20,1,20,7],[22,8,22,11],[18,12,18,17],[17,12,17,17],[20,12,20,17],[97,2,97,4],[93,24,93,26],[94,24,94,26],[95,27,95,30],[96,27,96,30],[93,27,93,30],[94,27,94,30],[97,24,97,26],[21,18,21,23],[39,21,39,30],[25,17,25,22],[25,23,25,27],[21,12,21,17],[94,2,94,4],[93,2,93,4],[84,16,84,18],[97,27,97,30],[25,28,25,32],[86,24,86,26],[91,24,91,26],[92,24,92,26],[90,24,90,26],[90,27,90,30],[23,28,23,31],[24,33,24,38],[35,24,35,34],[85,24,85,26],[92,27,92,30],[93,38,93,40],[95,35,95,37],[91,35,91,37],[94,35,94,37],[92,35,92,37],[93,35,93,37],[93,31,93,34],[90,35,90,37],[84,24,84,26],[92,31,92,34],[86,35,86,37],[88,38,88,40],[79,33,79,36],[84,38,84,40],[87,38,87,40],[99,43,99,44],[91,43,91,44],[95,43,95,44],[96,43,96,44],[91,41,91,42],[92,41,92,42],[93,41,93,42],[97,43,97,44],[94,41,94,42],[95,41,95,42],[97,41,97,42],[98,41,98,42],[99,41,99,42],[96,41,96,42],[85,43,85,44],[86,43,86,44],[87,43,87,44],[88,43,88,44],[89,43,89,44],[98,43,98,44],[90,43,90,44],[92,43,92,44],[93,43,93,44],[94,43,94,44]]}
[]
[null,"Szerződő: természetes személy"]
[]
[]
[null," 18 év felettiek",null,null,null,null,null,"fő",null,"Átlagéletkoruk:",null,null,null,{"$f":"IFERROR(IF(TablaAlapszolgertek1<>\"\",ROUND(AVERAGEIF(M86:M100,\">17\"),0),\"\"),0)","v":""},null,"év",null,"18 év alattiak:",null,null,null,null,"fő"]
[]
[null,"Szolgáltatások / Díjszámítás"]
[]
[null,"Biztosítottak neve",null,null,null,null,null,null,"Születés ideje",null,null,null,"Választott csomag",null,null,null,null,null,"Szűrővizsgálat",null,null,null,null,null,"Kórházi csomag",null,null,null,"Hope Plusz",null,null,null,"Éves díj"]
[null,{"$f":"CONCATENATE('részletező term.személy szerz'!A8,\" \",'részletező term.személy szerz'!B8)","v":" "},null,null,null,null,null,null,null,null,null,null,null,null,null,null,null,null,null,null,null,null,null,null,null,null,null,null,null,null,null,null,{"$f":"IF(AND(M86>17,O86=4),\"Felnőtt!\",IF(AND(M86<18,O86<4),\"Gyermek!\",IF(AP86>0,AP86,\"\")))","v":""}]
[null,{"$f":"CONCATENATE('részletező term.személy szerz'!A9,\" \",'részletező term.személy szerz'!B9)","v":" "},null,null,null,null,null,null,null,null,null,null,null,null,null,null,null,null,null,null,null,null,null,null,null,null,null,null,null,null,null,null,{"$f":"IF(AND(M87>17,O87=4),\"Felnőtt!\",IF(AND(M87<18,O87<4),\"Gyermek!\",IF(AP87>0,AP87,\"\")))","v":""}]
[null,{"$f":"CONCATENATE('részletező term.személy szerz'!A10,\" \",'részletező term.személy szerz'!B10)","v":" "},null,null,null,null,null,null,null,null,null,null,null,null,null,null,null,null,null,null,null,null,null,null,null,null,null,null,null,null,null,null,""]
[null,{"$f":"CONCATENATE('részletező term.személy szerz'!A11,\" \",'részletező term.személy szerz'!B11)","v":" "},null,null,null,null,null,null,null,null,null,null,null,null,null,null,null,null,null,null,null,null,null,null,null,null,null,null,null,null,null,null,""]
[null,{"$f":"CONCATENATE('részletező term.személy szerz'!A12,\" \",'részletező term.személy szerz'!B12)","v":" "},null,null,null,null,null,null,null,null,null,null,null,null,null,null,null,null,null,null,null,null,null,null,null,null,null,null,null,null,null,null,""]
[null,{"$f":"CONCATENATE('részletező term.személy szerz'!A13,\" \",'részletező term.személy szerz'!B13)","v":" "},null,null,null,null,null,null,null,null,null,null,null,null,null,null,null,null,null,null,null,null,null,null,null,null,null,null,null,null,null,null,""]
[null,{"$f":"CONCATENATE('részletező term.személy szerz'!A14,\" \",'részletező term.személy szerz'!B14)","v":" "},null,null,null,null,null,null,null,null,null,null,null,null,null,null,null,null,null,null,null,null,null,null,null,null,null,null,null,null,null,null,""]
[null,{"$f":"CONCATENATE('részletező term.személy szerz'!A15,\" \",'részletező term.személy szerz'!B15)","v":" "},null,null,null,null,null,null,null,null,null,null,null,null,null,null,null,null,null,null,null,null,null,null,null,null,null,null,null,null,null,null,""]
[null,{"$f":"CONCATENATE('részletező term.személy szerz'!A16,\" \",'részletező term.személy szerz'!B16)","v":" "},null,null,null,null,null,null,null,null,null,null,null,null,null,null,null,null,null,null,null,null,null,null,null,null,null,null,null,null,null,null,""]
[null,{"$f":"CONCATENATE('részletező term.személy szerz'!A17,\" \",'részletező term.személy szerz'!B17)","v":" "},null,null,null,null,null,null,null,null,null,null,null,null,null,null,null,null,null,null,null,null,null,null,null,null,null,null,null,null,null,null,""]
[null,{"$f":"CONCATENATE('részletező term.személy szerz'!A18,\" \",'részletező term.személy szerz'!B18)","v":" "},null,null,null,null,null,null,null,null,null,null,null,null,null,null,null,null,null,null,null,null,null,null,null,null,null,null,null,null,null,null,""]
[null,{"$f":"CONCATENATE('részletező term.személy szerz'!A19,\" \",'részletező term.személy szerz'!B19)","v":" "},null,null,null,null,null,null,null,null,null,null,null,null,null,null,null,null,null,null,null,null,null,null,null,null,null,null,null,null,null,null,""]
[null,{"$f":"CONCATENATE('részletező term.személy szerz'!A20,\" \",'részletező term.személy szerz'!B20)","v":" "},null,null,null,null,null,null,null,null,null,null,null,null,null,null,null,null,null,null,null,null,null,null,null,null,null,null,null,null,null,null,""]
[null,{"$f":"CONCATENATE('részletező term.személy szerz'!A21,\" \",'részletező term.személy szerz'!B21)","v":" "},null,null,null,null,null,null,null,null,null,null,null,null,null,null,null,null,null,null,null,null,null,null,null,null,null,null,null,null,null,null,""]
[null,{"$f":"CONCATENATE('részletező term.személy szerz'!A22,\" \",'részletező term.személy szerz'!B22)","v":" "},null,null,null,null,null,null,null,null,null,null,null,null,null,null,null,null,null,null,null,null,null,null,null,null,null,null,null,null,null,null,""]
[]
[]
[null,"Díjfizetési gyakoriság: "]
[]
[null,"Előzménybetegségek pótdíja:"]
[null,"Összes éves díj:",null,null,null,null,{"$f":"SUM(AG10:AM24)","v":0},null,null,null,null,null,null,"Ft"]
[null,"Gyakoriság szerint fizetendő díj:",null,null,null,null,null,null,null,{"$f":"IF(gyakorisag=1,evesdij,IF(gyakorisag=2,evesdij/2,IF(gyakorisag=3,evesdij/4,IF(gyakorisag=4,evesdij/12,0))))","v":0},null,null,null,"Ft / gyakoriság"]
[]
[]
[null,"Kelt:",null,null,null,null,null,null,",",null,null,null,"év",null,null,"hó",null,null,"nap"]
[]
[null,null,null,null,null,null,null,null,null,null,null,null,null,null,null,null,null,null,null,null,null,null,null,null,"Szerződő aláírása"]
[]
[]
[]
[null,null,null,null,null,null,null,null,null,null,null,null,null,null,null,null,null,null,null,null,null,"Biztosításközvetítő aláírása"]
[]
[]
[]
[]
[]
[]
[]
[]
[]
[]
[]
[]
[]
[]
[]
[]
[]
[]
[]
[]
[]
[]
[]
[]
[]
[]
[]
[]
[]
[]
[]
[]
[null,null,"Díj fiz gy",null,"éves",null,4]
[null,null,null,null,"féléves"]
[null,null,null,null,"negyedéves"]
[null,null,null,null,"havi"]
[]
[]
[null,null,"Alapszolgáltatások",null,null,null,null,null,"Éves limit",null,null,null,null,"szűrővizsgálat",null,null,null,null,null,"Kórházi csomag",null,null,null,null,"Hope Plusz"]
[null,null,"igen",null,null,null,null,null,"egyszeres",null,null,null,null,"nem",null,null,null,null,null,"nem",null,null,null,null,"nem",null,null,null,null,null,null,null,null,{"$f":"IF(AND(elozmenyigaz,countember>9),(SUM(AR86:AS100)*LetszamKedv)*0.4,0)","v":0}]
[null,null,"gyermekcsomag",null,null,null,null,null,"kétszeres",null,null,null,null,"közepes",null,null,null,null,null,"igen",null,null,null,null,"Arany"]
[null,null,null,null,null,null,null,null,"limit nélkül",null,null,null,null,"személyreszabott",null,null,null,null,null,null,null,null,null,null,"Ezüst"]
[]
[null,null,null,null,null,null,null,null,"Ember"]
[null,null,null,null,null,null,null,null,null,{"$f":"Nagykoruossz+eighteen","v":0},"Index","Életkor",null,null,"Eves limit",null,"Szűrővizsg",null,null,"Kórházi",null,"HopePlusz",null,null,"Alptarifa",null,null,"Szürővizsgdíj",null,null,null,"Kórházi csomag",null,null,null,"Hope Plusz",null,null,"Díj",null,null,"Létszámkordíj",null,"Előzmény szűrőnélkül és hopeplusz nélkül"]
[null,null,"Létszám kedvezmény:",null,null,null,null,null,1,null,{"$f":"IF(O86=1,IF(R86=1,2,IF(R86=2,3,2)),IF(O86=2,(IF(R86=1,4,(IF(R86=2,5,IF(R86=3,11,4))))),(IF(O86=3,IF(R86=1,6,IF(R86=2,7,IF(R86=3,12,6))),IF(O86=4,-1,\"\")))))","v":""},null,{"$f":"IF(AND(I10<>\"\",countember>0),YEAR(TODAY())-YEAR(I10),\"\")","v":""},null,5,null,null,0,null,0,null,null,0,null,{"$f":"IF(K86=-1,tarifaPro!$O$3,IF(OR(K86=3,K86=5,K86=7),VLOOKUP(AvgEletkor,tarifaPro!$A$3:$L$54,(K86-1)),IF(K86=11,VLOOKUP(AvgEletkor,tarifaPro!$A$3:$L$54,4),IF(K86=12,VLOOKUP(AvgEletkor,tarifaPro!$A$3:$L$54,6),VLOOKUP(AvgEletkor,tarifaPro!$A$3:$L$54,K86)))))","v":{"$error":"#N/A"}},null,null,{"$f":"IF(K86=-1,tarifaPro!$O$3,VLOOKUP(AvgEletkor,tarifaPro!$A$3:$L$54,K86))-Y86","v":{"$error":"#N/A"}},null,null,null,{"$f":" IF(T86<>2,0,IF(O86=4,Gyerekkorhaz,VLOOKUP(AvgEletkor,tarifaPro!$A$3:$J$54,OszlopIndexKorhazi)))","v":0},null,null,null,{"$f":" IF(W86=3,VLOOKUP(AvgEletkor,tarifaPro!$A$3:$J$54,OszlopIndexHopePluszEzust),IF(W86=2,VLOOKUP(AvgEletkor,tarifaPro!$A$3:$J$54,OszlopIndexHopePluszArany),0))","v":0},null,null,{"$f":"IFERROR(IF(countember>0,SUM(Y86:AL86),0),0)","v":0},null,null,{"$f":"IF(O86=4,AM86,AM86*LetszamKedv)+IFERROR(IF(AND(K86<>-1,elozmenyigaz,countember>9),((AM86-AJ86-AB86)*LetszamKedv)*0.4,0),0)","v":0},null,{"$f":"IFERROR(IF(K86=-1,0,(AM86-AJ86-AB86)),0)","v":0}]
[null,null,{"$f":"IFERROR(IF(IF(countember=\"\",1,countember)>100,0.8,LOOKUP(countember,tarifaPro!A59:A158,tarifaPro!B59:B158)),1)","v":1},null,null,null,null,null,2,null,{"$f":"IF(O87=1,IF(R87=1,2,IF(R87=2,3,2)),IF(O87=2,(IF(R87=1,4,(IF(R87=2,5,IF(R87=3,11,4))))),(IF(O87=3,IF(R87=1,6,IF(R87=2,7,IF(R87=3,12,6))),IF(O87=4,-1,\"\")))))","v":""},null,{"$f":"IF(AND(I11<>\"\",countember>1),YEAR(TODAY())-YEAR(I11),\"\")","v":""},null,5,null,null,0,null,0,null,null,0,null,{"$f":"IF(K87=-1,tarifaPro!$O$3,IF(OR(K87=3,K87=5,K87=7),VLOOKUP(AvgEletkor,tarifaPro!$A$3:$L$54,(K87-1)),IF(K87=11,VLOOKUP(AvgEletkor,tarifaPro!$A$3:$L$54,4),IF(K87=12,VLOOKUP(AvgEletkor,tarifaPro!$A$3:$L$54,6),VLOOKUP(AvgEletkor,tarifaPro!$A$3:$L$54,K87)))))","v":{"$error":"#N/A"}},null,null,{"$f":"IF(K87=-1,tarifaPro!$O$3,VLOOKUP(AvgEletkor,tarifaPro!$A$3:$L$54,K87))-Y87","v":{"$error":"#N/A"}},null,null,null,{"$f":" IF(T87<>2,0,IF(O87=4,Gyerekkorhaz,VLOOKUP(AvgEletkor,tarifaPro!$A$3:$J$54,OszlopIndexKorhazi)))","v":0},null,null,null,{"$f":" IF(W87=3,VLOOKUP(AvgEletkor,tarifaPro!$A$3:$J$54,OszlopIndexHopePluszEzust),IF(W87=2,VLOOKUP(AvgEletkor,tarifaPro!$A$3:$J$54,OszlopIndexHopePluszArany),0))","v":0},null,null,{"$f":"IFERROR(IF(countember>1,SUM(Y87:AL87),0),0)","v":0},null,null,0,null,{"$f":"IFERROR(IF(K87=-1,0,(AM87-AJ87-AB87)),0)","v":0}]
[null,null,null,null,null,null,null,null,3,null,"",null,{"$f":"IF(AND(I12<>\"\",countember>2),YEAR(TODAY())-YEAR(I12),\"\")","v":""},null,5,null,null,0,null,0,null,null,0,null,{"$f":"IF(K88=-1,tarifaPro!$O$3,IF(OR(K88=3,K88=5,K88=7),VLOOKUP(AvgEletkor,tarifaPro!$A$3:$L$54,(K88-1)),IF(K88=11,VLOOKUP(AvgEletkor,tarifaPro!$A$3:$L$54,4),IF(K88=12,VLOOKUP(AvgEletkor,tarifaPro!$A$3:$L$54,6),VLOOKUP(AvgEletkor,tarifaPro!$A$3:$L$54,K88)))))","v":{"$error":"#N/A"}},null,null,{"$f":"IF(K88=-1,tarifaPro!$O$3,VLOOKUP(AvgEletkor,tarifaPro!$A$3:$L$54,K88))-Y88","v":{"$error":"#N/A"}},null,null,null,{"$f":" IF(T88<>2,0,IF(O88=4,Gyerekkorhaz,VLOOKUP(AvgEletkor,tarifaPro!$A$3:$J$54,OszlopIndexKorhazi)))","v":0},null,null,null,{"$f":" IF(W88=3,VLOOKUP(AvgEletkor,tarifaPro!$A$3:$J$54,OszlopIndexHopePluszEzust),IF(W88=2,VLOOKUP(AvgEletkor,tarifaPro!$A$3:$J$54,OszlopIndexHopePluszArany),0))","v":0},null,null,{"$f":"IFERROR(IF(countember>2,SUM(Y88:AL88),0),0)","v":0},null,null,0,null,0]
[null,null,"Előzménybetegség pótdíja",null,null,null,null,null,4,null,"",null,{"$f":"IF(AND(I13<>\"\",countember>3),YEAR(TODAY())-YEAR(I13),\"\")","v":""},null,5,null,null,0,null,0,null,null,0,null,{"$f":"IF(K89=-1,tarifaPro!$O$3,IF(OR(K89=3,K89=5,K89=7),VLOOKUP(AvgEletkor,tarifaPro!$A$3:$L$54,(K89-1)),IF(K89=11,VLOOKUP(AvgEletkor,tarifaPro!$A$3:$L$54,4),IF(K89=12,VLOOKUP(AvgEletkor,tarifaPro!$A$3:$L$54,6),VLOOKUP(AvgEletkor,tarifaPro!$A$3:$L$54,K89)))))","v":{"$error":"#N/A"}},null,null,{"$f":"IF(K89=-1,tarifaPro!$O$3,VLOOKUP(AvgEletkor,tarifaPro!$A$3:$L$54,K89))-Y89","v":{"$error":"#N/A"}},null,null,null,{"$f":" IF(T89<>2,0,IF(O89=4,Gyerekkorhaz,VLOOKUP(AvgEletkor,tarifaPro!$A$3:$J$54,OszlopIndexKorhazi)))","v":0},null,null,null,{"$f":" IF(W89=3,VLOOKUP(AvgEletkor,tarifaPro!$A$3:$J$54,OszlopIndexHopePluszEzust),IF(W89=2,VLOOKUP(AvgEletkor,tarifaPro!$A$3:$J$54,OszlopIndexHopePluszArany),0))","v":0},null,null,{"$f":"IFERROR(IF(countember>3,SUM(Y89:AL89),0),0)","v":0},null,null,0,null,0]
[null,null,false,null,null,null,null,null,5,null,"",null,{"$f":"IF(AND(I14<>\"\",countember>4),YEAR(TODAY())-YEAR(I14),\"\")","v":""},null,5,null,null,0,null,0,null,null,0,null,{"$f":"IF(K90=-1,tarifaPro!$O$3,IF(OR(K90=3,K90=5,K90=7),VLOOKUP(AvgEletkor,tarifaPro!$A$3:$L$54,(K90-1)),IF(K90=11,VLOOKUP(AvgEletkor,tarifaPro!$A$3:$L$54,4),IF(K90=12,VLOOKUP(AvgEletkor,tarifaPro!$A$3:$L$54,6),VLOOKUP(AvgEletkor,tarifaPro!$A$3:$L$54,K90)))))","v":{"$error":"#N/A"}},null,null,{"$f":"IF(K90=-1,tarifaPro!$O$3,VLOOKUP(AvgEletkor,tarifaPro!$A$3:$L$54,K90))-Y90","v":{"$error":"#N/A"}},null,null,null,{"$f":" IF(T90<>2,0,IF(O90=4,Gyerekkorhaz,VLOOKUP(AvgEletkor,tarifaPro!$A$3:$J$54,OszlopIndexKorhazi)))","v":0},null,null,null,{"$f":" IF(W90=3,VLOOKUP(AvgEletkor,tarifaPro!$A$3:$J$54,OszlopIndexHopePluszEzust),IF(W90=2,VLOOKUP(AvgEletkor,tarifaPro!$A$3:$J$54,OszlopIndexHopePluszArany),0))","v":0},null,null,{"$f":"IFERROR(IF(countember>4,SUM(Y90:AL90),0),0)","v":0},null,null,0,null,0]
[null,null,null,null,null,null,null,null,6,null,"",null,{"$f":"IF(AND(I15<>\"\",countember>5),YEAR(TODAY())-YEAR(I15),\"\")","v":""},null,5,null,null,0,null,0,null,null,0,null,{"$f":"IF(K91=-1,tarifaPro!$O$3,IF(OR(K91=3,K91=5,K91=7),VLOOKUP(AvgEletkor,tarifaPro!$A$3:$L$54,(K91-1)),IF(K91=11,VLOOKUP(AvgEletkor,tarifaPro!$A$3:$L$54,4),IF(K91=12,VLOOKUP(AvgEletkor,tarifaPro!$A$3:$L$54,6),VLOOKUP(AvgEletkor,tarifaPro!$A$3:$L$54,K91)))))","v":{"$error":"#N/A"}},null,null,{"$f":"IF(K91=-1,tarifaPro!$O$3,VLOOKUP(AvgEletkor,tarifaPro!$A$3:$L$54,K91))-Y91","v":{"$error":"#N/A"}},null,null,null,{"$f":" IF(T91<>2,0,IF(O91=4,Gyerekkorhaz,VLOOKUP(AvgEletkor,tarifaPro!$A$3:$J$54,OszlopIndexKorhazi)))","v":0},null,null,null,{"$f":" IF(W91=3,VLOOKUP(AvgEletkor,tarifaPro!$A$3:$J$54,OszlopIndexHopePluszEzust),IF(W91=2,VLOOKUP(AvgEletkor,tarifaPro!$A$3:$J$54,OszlopIndexHopePluszArany),0))","v":0},null,null,{"$f":"IFERROR(IF(countember>5,SUM(Y91:AL91),0),0)","v":0},null,null,0,null,0]
[null,null,null,null,null,null,null,null,7,null,"",null,{"$f":"IF(AND(I16<>\"\",countember>6),YEAR(TODAY())-YEAR(I16),\"\")","v":""},null,5,null,null,0,null,0,null,null,0,null,{"$f":"IF(K92=-1,tarifaPro!$O$3,IF(OR(K92=3,K92=5,K92=7),VLOOKUP(AvgEletkor,tarifaPro!$A$3:$L$54,(K92-1)),IF(K92=11,VLOOKUP(AvgEletkor,tarifaPro!$A$3:$L$54,4),IF(K92=12,VLOOKUP(AvgEletkor,tarifaPro!$A$3:$L$54,6),VLOOKUP(AvgEletkor,tarifaPro!$A$3:$L$54,K92)))))","v":{"$error":"#N/A"}},null,null,{"$f":"IF(K92=-1,tarifaPro!$O$3,VLOOKUP(AvgEletkor,tarifaPro!$A$3:$L$54,K92))-Y92","v":{"$error":"#N/A"}},null,null,null,{"$f":" IF(T92<>2,0,IF(O92=4,Gyerekkorhaz,VLOOKUP(AvgEletkor,tarifaPro!$A$3:$J$54,OszlopIndexKorhazi)))","v":0},null,null,null,{"$f":" IF(W92=3,VLOOKUP(AvgEletkor,tarifaPro!$A$3:$J$54,OszlopIndexHopePluszEzust),IF(W92=2,VLOOKUP(AvgEletkor,tarifaPro!$A$3:$J$54,OszlopIndexHopePluszArany),0))","v":0},null,null,{"$f":"IFERROR(IF(countember>6,SUM(Y92:AL92),0),0)","v":0},null,null,0,null,0]
[null,null,"Aktuális nap",null,null,null,null,null,8,null,"",null,{"$f":"IF(AND(I17<>\"\",countember>7),YEAR(TODAY())-YEAR(I17),\"\")","v":""},null,5,null,null,0,null,0,null,null,0,null,{"$f":"IF(K93=-1,tarifaPro!$O$3,IF(OR(K93=3,K93=5,K93=7),VLOOKUP(AvgEletkor,tarifaPro!$A$3:$L$54,(K93-1)),IF(K93=11,VLOOKUP(AvgEletkor,tarifaPro!$A$3:$L$54,4),IF(K93=12,VLOOKUP(AvgEletkor,tarifaPro!$A$3:$L$54,6),VLOOKUP(AvgEletkor,tarifaPro!$A$3:$L$54,K93)))))","v":{"$error":"#N/A"}},null,null,{"$f":"IF(K93=-1,tarifaPro!$O$3,VLOOKUP(AvgEletkor,tarifaPro!$A$3:$L$54,K93))-Y93","v":{"$error":"#N/A"}},null,null,null,{"$f":" IF(T93<>2,0,IF(O93=4,Gyerekkorhaz,VLOOKUP(AvgEletkor,tarifaPro!$A$3:$J$54,OszlopIndexKorhazi)))","v":0},null,null,null,{"$f":" IF(W93=3,VLOOKUP(AvgEletkor,tarifaPro!$A$3:$J$54,OszlopIndexHopePluszEzust),IF(W93=2,VLOOKUP(AvgEletkor,tarifaPro!$A$3:$J$54,OszlopIndexHopePluszArany),0))","v":0},null,null,{"$f":"IFERROR(IF(countember>7,SUM(Y93:AL93),0),0)","v":0},null,null,0,null,0]
[null,null,{"$f":"DATE(YEAR(TODAY())-69,1,1)","v":"1949-01-01"},null,null,null,null,null,9,null,"",null,{"$f":"IF(AND(I18<>\"\",countember>8),YEAR(TODAY())-YEAR(I18),\"\")","v":""},null,5,null,null,0,null,0,null,null,0,null,{"$f":"IF(K94=-1,tarifaPro!$O$3,IF(OR(K94=3,K94=5,K94=7),VLOOKUP(AvgEletkor,tarifaPro!$A$3:$L$54,(K94-1)),IF(K94=11,VLOOKUP(AvgEletkor,tarifaPro!$A$3:$L$54,4),IF(K94=12,VLOOKUP(AvgEletkor,tarifaPro!$A$3:$L$54,6),VLOOKUP(AvgEletkor,tarifaPro!$A$3:$L$54,K94)))))","v":{"$error":"#N/A"}},null,null,{"$f":"IF(K94=-1,tarifaPro!$O$3,VLOOKUP(AvgEletkor,tarifaPro!$A$3:$L$54,K94))-Y94","v":{"$error":"#N/A"}},null,null,null,{"$f":" IF(T94<>2,0,IF(O94=4,Gyerekkorhaz,VLOOKUP(AvgEletkor,tarifaPro!$A$3:$J$54,OszlopIndexKorhazi)))","v":0},null,null,null,{"$f":" IF(W94=3,VLOOKUP(AvgEletkor,tarifaPro!$A$3:$J$54,OszlopIndexHopePluszEzust),IF(W94=2,VLOOKUP(AvgEletkor,tarifaPro!$A$3:$J$54,OszlopIndexHopePluszArany),0))","v":0},null,null,{"$f":"IFERROR(IF(countember>8,SUM(Y94:AL94),0),0)","v":0},null,null,0,null,0]
[null,null,{"$f":"TODAY()-184","v":"2017-07-25"},null,null,null,null,null,10,null,"",null,{"$f":"IF(AND(I19<>\"\",countember>9),YEAR(TODAY())-YEAR(I19),\"\")","v":""},null,5,null,null,0,null,0,null,null,0,null,{"$f":"IF(K95=-1,tarifaPro!$O$3,IF(OR(K95=3,K95=5,K95=7),VLOOKUP(AvgEletkor,tarifaPro!$A$3:$L$54,(K95-1)),IF(K95=11,VLOOKUP(AvgEletkor,tarifaPro!$A$3:$L$54,4),IF(K95=12,VLOOKUP(AvgEletkor,tarifaPro!$A$3:$L$54,6),VLOOKUP(AvgEletkor,tarifaPro!$A$3:$L$54,K95)))))","v":{"$error":"#N/A"}},null,null,{"$f":"IF(K95=-1,tarifaPro!$O$3,VLOOKUP(AvgEletkor,tarifaPro!$A$3:$L$54,K95))-Y95","v":{"$error":"#N/A"}},null,null,null,{"$f":" IF(T95<>2,0,IF(O95=4,Gyerekkorhaz,VLOOKUP(AvgEletkor,tarifaPro!$A$3:$J$54,OszlopIndexKorhazi)))","v":0},null,null,null,{"$f":" IF(W95=3,VLOOKUP(AvgEletkor,tarifaPro!$A$3:$J$54,OszlopIndexHopePluszEzust),IF(W95=2,VLOOKUP(AvgEletkor,tarifaPro!$A$3:$J$54,OszlopIndexHopePluszArany),0))","v":0},null,null,{"$f":"IFERROR(IF(countember>9,SUM(Y95:AL95),0),0)","v":0},null,null,0,null,0]
[null,null,null,null,null,null,null,null,11,null,"",null,{"$f":"IF(AND(I20<>\"\",countember>10),YEAR(TODAY())-YEAR(I20),\"\")","v":""},null,5,null,null,0,null,0,null,null,0,null,{"$f":"IF(K96=-1,tarifaPro!$O$3,IF(OR(K96=3,K96=5,K96=7),VLOOKUP(AvgEletkor,tarifaPro!$A$3:$L$54,(K96-1)),IF(K96=11,VLOOKUP(AvgEletkor,tarifaPro!$A$3:$L$54,4),IF(K96=12,VLOOKUP(AvgEletkor,tarifaPro!$A$3:$L$54,6),VLOOKUP(AvgEletkor,tarifaPro!$A$3:$L$54,K96)))))","v":{"$error":"#N/A"}},null,null,{"$f":"IF(K96=-1,tarifaPro!$O$3,VLOOKUP(AvgEletkor,tarifaPro!$A$3:$L$54,K96))-Y96","v":{"$error":"#N/A"}},null,null,null,{"$f":" IF(T96<>2,0,IF(O96=4,Gyerekkorhaz,VLOOKUP(AvgEletkor,tarifaPro!$A$3:$J$54,OszlopIndexKorhazi)))","v":0},null,null,null,{"$f":" IF(W96=3,VLOOKUP(AvgEletkor,tarifaPro!$A$3:$J$54,OszlopIndexHopePluszEzust),IF(W96=2,VLOOKUP(AvgEletkor,tarifaPro!$A$3:$J$54,OszlopIndexHopePluszArany),0))","v":0},null,null,{"$f":"IFERROR(IF(countember>10,SUM(Y96:AL96),0),0)","v":0},null,null,0,null,0]
[null,null,{"$f":"YEAR(TODAY())-69","v":1949},null,null,null,null,null,12,null,"",null,{"$f":"IF(AND(I21<>\"\",countember>11),YEAR(TODAY())-YEAR(I21),\"\")","v":""},null,5,null,null,0,null,0,null,null,0,null,{"$f":"IF(K97=-1,tarifaPro!$O$3,IF(OR(K97=3,K97=5,K97=7),VLOOKUP(AvgEletkor,tarifaPro!$A$3:$L$54,(K97-1)),IF(K97=11,VLOOKUP(AvgEletkor,tarifaPro!$A$3:$L$54,4),IF(K97=12,VLOOKUP(AvgEletkor,tarifaPro!$A$3:$L$54,6),VLOOKUP(AvgEletkor,tarifaPro!$A$3:$L$54,K97)))))","v":{"$error":"#N/A"}},null,null,{"$f":"IF(K97=-1,tarifaPro!$O$3,VLOOKUP(AvgEletkor,tarifaPro!$A$3:$L$54,K97))-Y97","v":{"$error":"#N/A"}},null,null,null,{"$f":" IF(T97<>2,0,IF(O97=4,Gyerekkorhaz,VLOOKUP(AvgEletkor,tarifaPro!$A$3:$J$54,OszlopIndexKorhazi)))","v":0},null,null,null,{"$f":" IF(W97=3,VLOOKUP(AvgEletkor,tarifaPro!$A$3:$J$54,OszlopIndexHopePluszEzust),IF(W97=2,VLOOKUP(AvgEletkor,tarifaPro!$A$3:$J$54,OszlopIndexHopePluszArany),0))","v":0},null,null,{"$f":"IFERROR(IF(countember>11,SUM(Y97:AL97),0),0)","v":0},null,null,0,null,0]
[null,null,{"$f":"DATE(YEAR(TODAY()),MONTH(TODAY()),DAY(TODAY()))","v":"2018-01-25"},null,null,null,null,null,13,null,"",null,{"$f":"IF(AND(I22<>\"\",countember>12),YEAR(TODAY())-YEAR(I22),\"\")","v":""},null,5,null,null,0,null,0,null,null,0,null,{"$f":"IF(K98=-1,tarifaPro!$O$3,IF(OR(K98=3,K98=5,K98=7),VLOOKUP(AvgEletkor,tarifaPro!$A$3:$L$54,(K98-1)),IF(K98=11,VLOOKUP(AvgEletkor,tarifaPro!$A$3:$L$54,4),IF(K98=12,VLOOKUP(AvgEletkor,tarifaPro!$A$3:$L$54,6),VLOOKUP(AvgEletkor,tarifaPro!$A$3:$L$54,K98)))))","v":{"$error":"#N/A"}},null,null,{"$f":"IF(K98=-1,tarifaPro!$O$3,VLOOKUP(AvgEletkor,tarifaPro!$A$3:$L$54,K98))-Y98","v":{"$error":"#N/A"}},null,null,null,{"$f":" IF(T98<>2,0,IF(O98=4,Gyerekkorhaz,VLOOKUP(AvgEletkor,tarifaPro!$A$3:$J$54,OszlopIndexKorhazi)))","v":0},null,null,null,{"$f":" IF(W98=3,VLOOKUP(AvgEletkor,tarifaPro!$A$3:$J$54,OszlopIndexHopePluszEzust),IF(W98=2,VLOOKUP(AvgEletkor,tarifaPro!$A$3:$J$54,OszlopIndexHopePluszArany),0))","v":0},null,null,{"$f":"IFERROR(IF(countember>12,SUM(Y98:AL98),0),0)","v":0},null,null,0,null,0]
[null,null,null,null,null,null,null,null,14,null,"",null,{"$f":"IF(AND(I23<>\"\",countember>13),YEAR(TODAY())-YEAR(I23),\"\")","v":""},null,5,null,null,0,null,0,null,null,0,null,{"$f":"IF(K99=-1,tarifaPro!$O$3,IF(OR(K99=3,K99=5,K99=7),VLOOKUP(AvgEletkor,tarifaPro!$A$3:$L$54,(K99-1)),IF(K99=11,VLOOKUP(AvgEletkor,tarifaPro!$A$3:$L$54,4),IF(K99=12,VLOOKUP(AvgEletkor,tarifaPro!$A$3:$L$54,6),VLOOKUP(AvgEletkor,tarifaPro!$A$3:$L$54,K99)))))","v":{"$error":"#N/A"}},null,null,{"$f":"IF(K99=-1,tarifaPro!$O$3,VLOOKUP(AvgEletkor,tarifaPro!$A$3:$L$54,K99))-Y99","v":{"$error":"#N/A"}},null,null,null,{"$f":" IF(T99<>2,0,IF(O99=4,Gyerekkorhaz,VLOOKUP(AvgEletkor,tarifaPro!$A$3:$J$54,OszlopIndexKorhazi)))","v":0},null,null,null,{"$f":" IF(W99=3,VLOOKUP(AvgEletkor,tarifaPro!$A$3:$J$54,OszlopIndexHopePluszEzust),IF(W99=2,VLOOKUP(AvgEletkor,tarifaPro!$A$3:$J$54,OszlopIndexHopePluszArany),0))","v":0},null,null,{"$f":"IFERROR(IF(countember>13,SUM(Y99:AL99),0),0)","v":0},null,null,0,null,0]
[null,null,null,null,null,null,null,null,15,null,"",null,{"$f":"IF(AND(I24<>\"\",countember>14),YEAR(TODAY())-YEAR(I24),\"\")","v":""},null,5,null,null,0,null,0,null,null,0,null,{"$f":"IF(K100=-1,tarifaPro!$O$3,IF(OR(K100=3,K100=5,K100=7),VLOOKUP(AvgEletkor,tarifaPro!$A$3:$L$54,(K100-1)),IF(K100=11,VLOOKUP(AvgEletkor,tarifaPro!$A$3:$L$54,4),IF(K100=12,VLOOKUP(AvgEletkor,tarifaPro!$A$3:$L$54,6),VLOOKUP(AvgEletkor,tarifaPro!$A$3:$L$54,K100)))))","v":{"$error":"#N/A"}},null,null,{"$f":"IF(K100=-1,tarifaPro!$O$3,VLOOKUP(AvgEletkor,tarifaPro!$A$3:$L$54,K100))-Y100","v":{"$error":"#N/A"}},null,null,null,{"$f":" IF(T100<>2,0,IF(O100=4,Gyerekkorhaz,VLOOKUP(AvgEletkor,tarifaPro!$A$3:$J$54,OszlopIndexKorhazi)))","v":0},null,null,null,{"$f":" IF(W100=3,VLOOKUP(AvgEletkor,tarifaPro!$A$3:$J$54,OszlopIndexHopePluszEzust),IF(W100=2,VLOOKUP(AvgEletkor,tarifaPro!$A$3:$J$54,OszlopIndexHopePluszArany),0))","v":0},null,null,{"$f":"IFERROR(IF(countember>14,SUM(Y100:AL100),0),0)","v":0},null,null,0,null,0]
[]
[]
[]
[]
[]
[]
[]
[]
[]
[]
[]
[]
[null,null,null,null,null,null,null,null,null,null,{"$f":"I12+(18*365+4)","v":"1917-12-30"}]

{"sheet":"részletező term.személy szerz","index":4,"n_rows":22,"n_cols":24,"rows_kept":22,"cut":false,"hidden":true,"merged":[[3,1,3,5],[0,0,0,16],[1,0,1,16]]}
["PrivateMed Pro csoportos egészségbiztosítás"]
["Részletező természetes személyeknek a szerződéskötéskor"]
[]
["Szerződő neve:"]
["Dátum:",{"$f":"IF(bizt.ev>2000,DATE(bizt.ev,bizt.ho,Ajánlat!P45),\"Ajánlat nincs kitöltve\")","v":"Ajánlat nincs kitöltve"},"Átlagkor:",{"$f":"IF(C8<>\"\",AVERAGEIF(D8:D22,\">17\"),\"\")","v":""},"Szerződésszám:",null,"Család: "]
[]
["Biztosított vezetékneve","Biztosított keresztneve","Születési ideje","Kor","Anyja neve","Telefon\n(+36)","Irányítószám","Helység","Utca, Házszám","Emelet / Ajtó","TAJ szám vagy egyéb okmány szám","Választott csomag","Szűrővizsgálat","Kórházi csomag","Hope Plusz","Előzmény-betegség","Alszerződésszám"]
[null,null,null,{"$f":"IF(C8<>\"\",YEAR(TODAY())-YEAR(C8),\"\")","v":""},null,null,null,null,null,null,null,{"$f":"IF('Díjszámítás term.személy szerz'!O86=1,'részletező term.személy szerz'!$U$8,IF('Díjszámítás term.személy szerz'!O86=2,'részletező term.személy szerz'!$U$9,IF('Díjszámítás term.személy szerz'!O86=3,'részletező term.személy szerz'!$U$10,IF('Díjszámítás term.személy szerz'!O86=4,'részletező term.személy szerz'!$U$11,\"\"))))","v":""},{"$f":"IF('Díjszámítás term.személy szerz'!R86=1,$V$8,IF('Díjszámítás term.személy szerz'!R86=2,$V$9,IF('Díjszámítás term.személy szerz'!R86=3,$V$10,\"\")))","v":""},{"$f":"IF('Díjszámítás term.személy szerz'!T86=1,$W$8,IF('Díjszámítás term.személy szerz'!T86=2,$W$9,\"\"))","v":""},{"$f":"IF('Díjszámítás term.személy szerz'!W86=1,$X$8,IF('Díjszámítás term.személy szerz'!W86=2,$X$9,IF('Díjszámítás term.személy szerz'!W86=3,$X$10,\"\")))","v":""},{"$f":"IF(elozmenyigaz,\"igen\",\"nem\")","v":"nem"},null,null,null,"igen","egyszeres","nem","nem","nem"]
[null,null,null,{"$f":"IF(C9<>\"\",YEAR(TODAY())-YEAR(C9),\"\")","v":""},null,null,null,null,null,null,null,{"$f":"IF('Díjszámítás term.személy szerz'!O87=1,'részletező term.személy szerz'!$U$8,IF('Díjszámítás term.személy szerz'!O87=2,'részletező term.személy szerz'!$U$9,IF('Díjszámítás term.személy szerz'!O87=3,'részletező term.személy szerz'!$U$10,IF('Díjszámítás term.személy szerz'!O87=4,'részletező term.személy szerz'!$U$11,\"\"))))","v":""},{"$f":"IF('Díjszámítás term.személy szerz'!R87=1,$V$8,IF('Díjszámítás term.személy szerz'!R87=2,$V$9,IF('Díjszámítás term.személy szerz'!R87=3,$V$10,\"\")))","v":""},{"$f":"IF('Díjszámítás term.személy szerz'!T87=1,$W$8,IF('Díjszámítás term.személy szerz'!T87=2,$W$9,\"\"))","v":""},{"$f":"IF('Díjszámítás term.személy szerz'!W87=1,$X$8,IF('Díjszámítás term.személy szerz'!W87=2,$X$9,IF('Díjszámítás term.személy szerz'!W87=3,$X$10,\"\")))","v":""},"nem",null,null,null,null,"kétszeres","közepes","igen","Arany"]
[null,null,null,"",null,null,null,null,null,null,null,{"$f":"IF('Díjszámítás term.személy szerz'!O88=1,'részletező term.személy szerz'!$U$8,IF('Díjszámítás term.személy szerz'!O88=2,'részletező term.személy szerz'!$U$9,IF('Díjszámítás term.személy szerz'!O88=3,'részletező term.személy szerz'!$U$10,IF('Díjszámítás term.személy szerz'!O88=4,'részletező term.személy szerz'!$U$11,\"\"))))","v":""},{"$f":"IF('Díjszámítás term.személy szerz'!R88=1,$V$8,IF('Díjszámítás term.személy szerz'!R88=2,$V$9,IF('Díjszámítás term.személy szerz'!R88=3,$V$10,\"\")))","v":""},{"$f":"IF('Díjszámítás term.személy szerz'!T88=1,$W$8,IF('Díjszámítás term.személy szerz'!T88=2,$W$9,\"\"))","v":""},{"$f":"IF('Díjszámítás term.személy szerz'!W88=1,$X$8,IF('Díjszámítás term.személy szerz'!W88=2,$X$9,IF('Díjszámítás term.személy szerz'!W88=3,$X$10,\"\")))","v":""},"nem",null,null,null,null,"limit nélkül","személyreszabott",null,"Ezüst"]
[null,null,null,"",null,null,null,null,null,null,null,{"$f":"IF('Díjszámítás term.személy szerz'!O89=1,'részletező term.személy szerz'!$U$8,IF('Díjszámítás term.személy szerz'!O89=2,'részletező term.személy szerz'!$U$9,IF('Díjszámítás term.személy szerz'!O89=3,'részletező term.személy szerz'!$U$10,IF('Díjszámítás term.személy szerz'!O89=4,'részletező term.személy szerz'!$U$11,\"\"))))","v":""},{"$f":"IF('Díjszámítás term.személy szerz'!R89=1,$V$8,IF('Díjszámítás term.személy szerz'!R89=2,$V$9,IF('Díjszámítás term.személy szerz'!R89=3,$V$10,\"\")))","v":""},{"$f":"IF('Díjszámítás term.személy szerz'!T89=1,$W$8,IF('Díjszámítás term.személy szerz'!T89=2,$W$9,\"\"))","v":""},{"$f":"IF('Díjszámítás term.személy szerz'!W89=1,$X$8,IF('Díjszámítás term.személy szerz'!W89=2,$X$9,IF('Díjszámítás term.személy szerz'!W89=3,$X$10,\"\")))","v":""},"nem",null,null,null,null,"gyermekcsomag"]
[null,null,null,"",null,null,null,null,null,null,null,{"$f":"IF('Díjszámítás term.személy szerz'!O90=1,'részletező term.személy szerz'!$U$8,IF('Díjszámítás term.személy szerz'!O90=2,'részletező term.személy szerz'!$U$9,IF('Díjszámítás term.személy szerz'!O90=3,'részletező term.személy szerz'!$U$10,IF('Díjszámítás term.személy szerz'!O90=4,'részletező term.személy szerz'!$U$11,\"\"))))","v":""},{"$f":"IF('Díjszámítás term.személy szerz'!R90=1,$V$8,IF('Díjszámítás term.személy szerz'!R90=2,$V$9,IF('Díjszámítás term.személy szerz'!R90=3,$V$10,\"\")))","v":""},{"$f":"IF('Díjszámítás term.személy szerz'!T90=1,$W$8,IF('Díjszámítás term.személy szerz'!T90=2,$W$9,\"\"))","v":""},{"$f":"IF('Díjszámítás term.személy szerz'!W90=1,$X$8,IF('Díjszámítás term.személy szerz'!W90=2,$X$9,IF('Díjszámítás term.személy szerz'!W90=3,$X$10,\"\")))","v":""},"nem"]
[null,null,null,"",null,null,null,null,null,null,null,{"$f":"IF('Díjszámítás term.személy szerz'!O91=1,'részletező term.személy szerz'!$U$8,IF('Díjszámítás term.személy szerz'!O91=2,'részletező term.személy szerz'!$U$9,IF('Díjszámítás term.személy szerz'!O91=3,'részletező term.személy szerz'!$U$10,IF('Díjszámítás term.személy szerz'!O91=4,'részletező term.személy szerz'!$U$11,\"\"))))","v":""},{"$f":"IF('Díjszámítás term.személy szerz'!R91=1,$V$8,IF('Díjszámítás term.személy szerz'!R91=2,$V$9,IF('Díjszámítás term.személy szerz'!R91=3,$V$10,\"\")))","v":""},{"$f":"IF('Díjszámítás term.személy szerz'!T91=1,$W$8,IF('Díjszámítás term.személy szerz'!T91=2,$W$9,\"\"))","v":""},{"$f":"IF('Díjszámítás term.személy szerz'!W91=1,$X$8,IF('Díjszámítás term.személy szerz'!W91=2,$X$9,IF('Díjszámítás term.személy szerz'!W91=3,$X$10,\"\")))","v":""},"nem"]
[null,null,null,"",null,null,null,null,null,null,null,{"$f":"IF('Díjszámítás term.személy szerz'!O92=1,'részletező term.személy szerz'!$U$8,IF('Díjszámítás term.személy szerz'!O92=2,'részletező term.személy szerz'!$U$9,IF('Díjszámítás term.személy szerz'!O92=3,'részletező term.személy szerz'!$U$10,IF('Díjszámítás term.személy szerz'!O92=4,'részletező term.személy szerz'!$U$11,\"\"))))","v":""},{"$f":"IF('Díjszámítás term.személy szerz'!R92=1,$V$8,IF('Díjszámítás term.személy szerz'!R92=2,$V$9,IF('Díjszámítás term.személy szerz'!R92=3,$V$10,\"\")))","v":""},{"$f":"IF('Díjszámítás term.személy szerz'!T92=1,$W$8,IF('Díjszámítás term.személy szerz'!T92=2,$W$9,\"\"))","v":""},{"$f":"IF('Díjszámítás term.személy szerz'!W92=1,$X$8,IF('Díjszámítás term.személy szerz'!W92=2,$X$9,IF('Díjszámítás term.személy szerz'!W92=3,$X$10,\"\")))","v":""},"nem"]
[null,null,null,"",null,null,null,null,null,null,null,{"$f":"IF('Díjszámítás term.személy szerz'!O93=1,'részletező term.személy szerz'!$U$8,IF('Díjszámítás term.személy szerz'!O93=2,'részletező term.személy szerz'!$U$9,IF('Díjszámítás term.személy szerz'!O93=3,'részletező term.személy szerz'!$U$10,IF('Díjszámítás term.személy szerz'!O93=4,'részletező term.személy szerz'!$U$11,\"\"))))","v":""},{"$f":"IF('Díjszámítás term.személy szerz'!R93=1,$V$8,IF('Díjszámítás term.személy szerz'!R93=2,$V$9,IF('Díjszámítás term.személy szerz'!R93=3,$V$10,\"\")))","v":""},{"$f":"IF('Díjszámítás term.személy szerz'!T93=1,$W$8,IF('Díjszámítás term.személy szerz'!T93=2,$W$9,\"\"))","v":""},{"$f":"IF('Díjszámítás term.személy szerz'!W93=1,$X$8,IF('Díjszámítás term.személy szerz'!W93=2,$X$9,IF('Díjszámítás term.személy szerz'!W93=3,$X$10,\"\")))","v":""},"nem"]
[null,null,null,"",null,null,null,null,null,null,null,{"$f":"IF('Díjszámítás term.személy szerz'!O94=1,'részletező term.személy szerz'!$U$8,IF('Díjszámítás term.személy szerz'!O94=2,'részletező term.személy szerz'!$U$9,IF('Díjszámítás term.személy szerz'!O94=3,'részletező term.személy szerz'!$U$10,IF('Díjszámítás term.személy szerz'!O94=4,'részletező term.személy szerz'!$U$11,\"\"))))","v":""},{"$f":"IF('Díjszámítás term.személy szerz'!R94=1,$V$8,IF('Díjszámítás term.személy szerz'!R94=2,$V$9,IF('Díjszámítás term.személy szerz'!R94=3,$V$10,\"\")))","v":""},{"$f":"IF('Díjszámítás term.személy szerz'!T94=1,$W$8,IF('Díjszámítás term.személy szerz'!T94=2,$W$9,\"\"))","v":""},{"$f":"IF('Díjszámítás term.személy szerz'!W94=1,$X$8,IF('Díjszámítás term.személy szerz'!W94=2,$X$9,IF('Díjszámítás term.személy szerz'!W94=3,$X$10,\"\")))","v":""},"nem"]
[null,null,null,"",null,null,null,null,null,null,null,{"$f":"IF('Díjszámítás term.személy szerz'!O95=1,'részletező term.személy szerz'!$U$8,IF('Díjszámítás term.személy szerz'!O95=2,'részletező term.személy szerz'!$U$9,IF('Díjszámítás term.személy szerz'!O95=3,'részletező term.személy szerz'!$U$10,IF('Díjszámítás term.személy szerz'!O95=4,'részletező term.személy szerz'!$U$11,\"\"))))","v":""},{"$f":"IF('Díjszámítás term.személy szerz'!R95=1,$V$8,IF('Díjszámítás term.személy szerz'!R95=2,$V$9,IF('Díjszámítás term.személy szerz'!R95=3,$V$10,\"\")))","v":""},{"$f":"IF('Díjszámítás term.személy szerz'!T95=1,$W$8,IF('Díjszámítás term.személy szerz'!T95=2,$W$9,\"\"))","v":""},{"$f":"IF('Díjszámítás term.személy szerz'!W95=1,$X$8,IF('Díjszámítás term.személy szerz'!W95=2,$X$9,IF('Díjszámítás term.személy szerz'!W95=3,$X$10,\"\")))","v":""},"nem"]
[null,null,null,"",null,null,null,null,null,null,null,{"$f":"IF('Díjszámítás term.személy szerz'!O96=1,'részletező term.személy szerz'!$U$8,IF('Díjszámítás term.személy szerz'!O96=2,'részletező term.személy szerz'!$U$9,IF('Díjszámítás term.személy szerz'!O96=3,'részletező term.személy szerz'!$U$10,IF('Díjszámítás term.személy szerz'!O96=4,'részletező term.személy szerz'!$U$11,\"\"))))","v":""},{"$f":"IF('Díjszámítás term.személy szerz'!R96=1,$V$8,IF('Díjszámítás term.személy szerz'!R96=2,$V$9,IF('Díjszámítás term.személy szerz'!R96=3,$V$10,\"\")))","v":""},{"$f":"IF('Díjszámítás term.személy szerz'!T96=1,$W$8,IF('Díjszámítás term.személy szerz'!T96=2,$W$9,\"\"))","v":""},{"$f":"IF('Díjszámítás term.személy szerz'!W96=1,$X$8,IF('Díjszámítás term.személy szerz'!W96=2,$X$9,IF('Díjszámítás term.személy szerz'!W96=3,$X$10,\"\")))","v":""},"nem",null,null,null,null,null,null,1]
[null,null,null,"",null,null,null,null,null,null,null,{"$f":"IF('Díjszámítás term.személy szerz'!O97=1,'részletező term.személy szerz'!$U$8,IF('Díjszámítás term.személy szerz'!O97=2,'részletező term.személy szerz'!$U$9,IF('Díjszámítás term.személy szerz'!O97=3,'részletező term.személy szerz'!$U$10,IF('Díjszámítás term.személy szerz'!O97=4,'részletező term.személy szerz'!$U$11,\"\"))))","v":""},{"$f":"IF('Díjszámítás term.személy szerz'!R97=1,$V$8,IF('Díjszámítás term.személy szerz'!R97=2,$V$9,IF('Díjszámítás term.személy szerz'!R97=3,$V$10,\"\")))","v":""},{"$f":"IF('Díjszámítás term.személy szerz'!T97=1,$W$8,IF('Díjszámítás term.személy szerz'!T97=2,$W$9,\"\"))","v":""},{"$f":"IF('Díjszámítás term.személy szerz'!W97=1,$X$8,IF('Díjszámítás term.személy szerz'!W97=2,$X$9,IF('Díjszámítás term.személy szerz'!W97=3,$X$10,\"\")))","v":""},"nem"]
[null,null,null,"",null,null,null,null,null,null,null,{"$f":"IF('Díjszámítás term.személy szerz'!O98=1,'részletező term.személy szerz'!$U$8,IF('Díjszámítás term.személy szerz'!O98=2,'részletező term.személy szerz'!$U$9,IF('Díjszámítás term.személy szerz'!O98=3,'részletező term.személy szerz'!$U$10,IF('Díjszámítás term.személy szerz'!O98=4,'részletező term.személy szerz'!$U$11,\"\"))))","v":""},{"$f":"IF('Díjszámítás term.személy szerz'!R98=1,$V$8,IF('Díjszámítás term.személy szerz'!R98=2,$V$9,IF('Díjszámítás term.személy szerz'!R98=3,$V$10,\"\")))","v":""},{"$f":"IF('Díjszámítás term.személy szerz'!T98=1,$W$8,IF('Díjszámítás term.személy szerz'!T98=2,$W$9,\"\"))","v":""},{"$f":"IF('Díjszámítás term.személy szerz'!W98=1,$X$8,IF('Díjszámítás term.személy szerz'!W98=2,$X$9,IF('Díjszámítás term.személy szerz'!W98=3,$X$10,\"\")))","v":""},"nem"]
[null,null,null,"",null,null,null,null,null,null,null,{"$f":"IF('Díjszámítás term.személy szerz'!O99=1,'részletező term.személy szerz'!$U$8,IF('Díjszámítás term.személy szerz'!O99=2,'részletező term.személy szerz'!$U$9,IF('Díjszámítás term.személy szerz'!O99=3,'részletező term.személy szerz'!$U$10,IF('Díjszámítás term.személy szerz'!O99=4,'részletező term.személy szerz'!$U$11,\"\"))))","v":""},{"$f":"IF('Díjszámítás term.személy szerz'!R99=1,$V$8,IF('Díjszámítás term.személy szerz'!R99=2,$V$9,IF('Díjszámítás term.személy szerz'!R99=3,$V$10,\"\")))","v":""},{"$f":"IF('Díjszámítás term.személy szerz'!T99=1,$W$8,IF('Díjszámítás term.személy szerz'!T99=2,$W$9,\"\"))","v":""},{"$f":"IF('Díjszámítás term.személy szerz'!W99=1,$X$8,IF('Díjszámítás term.személy szerz'!W99=2,$X$9,IF('Díjszámítás term.személy szerz'!W99=3,$X$10,\"\")))","v":""},"nem"]
[null,null,null,"",null,null,null,null,null,null,null,{"$f":"IF('Díjszámítás term.személy szerz'!O100=1,'részletező term.személy szerz'!$U$8,IF('Díjszámítás term.személy szerz'!O100=2,'részletező term.személy szerz'!$U$9,IF('Díjszámítás term.személy szerz'!O100=3,'részletező term.személy szerz'!$U$10,IF('Díjszámítás term.személy szerz'!O100=4,'részletező term.személy szerz'!$U$11,\"\"))))","v":""},{"$f":"IF('Díjszámítás term.személy szerz'!R100=1,$V$8,IF('Díjszámítás term.személy szerz'!R100=2,$V$9,IF('Díjszámítás term.személy szerz'!R100=3,$V$10,\"\")))","v":""},{"$f":"IF('Díjszámítás term.személy szerz'!T100=1,$W$8,IF('Díjszámítás term.személy szerz'!T100=2,$W$9,\"\"))","v":""},{"$f":"IF('Díjszámítás term.személy szerz'!W100=1,$X$8,IF('Díjszámítás term.személy szerz'!W100=2,$X$9,IF('Díjszámítás term.személy szerz'!W100=3,$X$10,\"\")))","v":""},"nem"]

{"sheet":"Díjszámítás jogi szem.szerz","index":5,"n_rows":98,"n_cols":46,"rows_kept":98,"cut":false,"hidden":true,"merged":[[89,45,89,46],[90,45,90,46],[85,45,85,46],[85,37,85,39],[86,24,86,26],[86,30,86,33],[86,34,86,36],[86,37,86,39],[90,42,90,44],[89,24,89,26],[89,34,89,36],[89,42,89,44],[14,31,14,38],[15,31,15,38],[14,19,14,24],[86,45,86,46],[87,37,87,39],[88,24,88,26],[88,30,88,33],[88,34,88,36],[88,37,88,39],[88,45,88,46],[87,45,87,46],[87,27,87,29],[88,27,88,29],[87,42,87,44],[88,42,88,44],[74,31,74,34],[12,31,12,38],[12,25,12,30],[13,25,13,30],[11,31,11,38],[11,7,11,12],[2,31,2,32],[2,24,2,25],[4,24,4,25],[6,24,6,25],[4,31,4,32],[13,31,13,38],[6,31,6,32],[10,31,10,38],[4,7,4,9],[5,5,5,6],[10,7,10,12],[10,13,10,18],[10,19,10,24],[10,25,10,30],[10,1,10,6],[84,42,84,44],[85,27,85,29],[86,27,86,29],[85,42,85,44],[86,42,86,44],[25,10,25,14],[24,7,24,14],[30,23,30,28],[84,14,84,15],[84,16,84,18],[84,19,84,20],[84,37,84,39],[84,21,84,23],[84,11,84,13],[36,21,36,30],[37,21,37,30],[30,30,30,31],[71,30,71,34],[91,37,91,39],[87,24,87,26],[87,30,87,33],[87,34,87,36],[91,34,91,36],[85,30,85,33],[85,34,85,36],[91,24,91,26],[85,24,85,26],[89,30,89,33],[90,37,90,39],[89,37,89,39],[89,27,89,29],[91,30,91,33],[90,27,90,29],[90,24,90,26],[90,30,90,33],[90,34,90,36],[89,2,89,4],[84,27,84,29],[11,1,11,6],[22,10,22,14],[14,1,14,6],[15,1,15,6],[16,1,16,6],[15,7,15,12],[16,7,16,12],[13,7,13,12],[30,9,30,11],[30,13,30,14],[30,16,30,17],[34,18,34,28],[35,1,35,23],[30,3,30,7],[32,2,32,12],[32,24,32,34],[33,24,33,34],[13,1,13,6],[16,31,16,38],[86,2,86,3],[14,25,14,30],[15,25,15,30],[14,7,14,12],[13,13,13,18],[12,1,12,6],[14,13,14,18],[23,7,23,26],[11,13,11,18],[11,19,11,24],[11,25,11,30],[12,7,12,12],[12,13,12,18],[12,19,12,24],[16,25,16,30],[13,19,13,24],[18,23,18,24],[15,13,15,18],[15,19,15,24],[16,13,16,18],[16,19,16,24]]}
[]
[null,"Szerződő: jogi személy"]
[null,"Béren kívüli juttatás",null,null,null,null,null,null,null,"Cafeteria-előzetes",null,null,null,null,null,null,null,null,null,null,null,"1.csoport:",null,null,0,null,"fő",null,"4.csoport:",null,null,0,null,"fő"]
[null,null,null,null,null,null,null,null,null,"Cafeteria-végleges"]
[null,"Biztosítottak létszáma:",null,null,null,null,null,null,null,null,"fő",null,null,null,null,null,null,null,null,null,null,"2.csoport:",null,null,0,null,"fő",null,"5.csoport:",null,null,0,null,"fő"]
[null,"Átlagéletkor:",null,null,null,null,null,"év"]
[null,null,null,null,null,null,null,null,null,null,null,null,null,null,null,null,null,null,null,null,null,"3.csoport:",null,null,0,null,"fő",null,"6.csoport:",null,null,0,null,"fő"]
[null,"Csoportok száma:"]
[null,"Szolgáltatások / Díjszámítás"]
[]
[null,"Biztosítotti csoport",null,null,null,null,null,"Választott csomag",null,null,null,null,null,"Szűrővizsgálat",null,null,null,null,null,"Kórházi csomag",null,null,null,null,null,"Hope Plusz",null,null,null,null,null,"Éves díj / fő"]
[null,1,null,null,null,null,null,null,null,null,null,null,null,null,null,null,null,null,null,null,null,null,null,null,null,null,null,null,null,null,null,{"$f":"IF(AND(AO86>0,AQ86<>0),AO86,\"\")","v":""}]
[null,2,null,null,null,null,null,null,null,null,null,null,null,null,null,null,null,null,null,null,null,null,null,null,null,null,null,null,null,null,null,""]
[null,3,null,null,null,null,null,null,null,null,null,null,null,null,null,null,null,null,null,null,null,null,null,null,null,null,null,null,null,null,null,""]
[null,4,null,null,null,null,null,null,null,null,null,null,null,null,null,null,null,null,null,null,null,null,null,null,null,null,null,null,null,null,null,""]
[null,5,null,null,null,null,null,null,null,null,null,null,null,null,null,null,null,null,null,null,null,null,null,null,null,null,null,null,null,null,null,""]
[null,6,null,null,null,null,null,null,null,null,null,null,null,null,null,null,null,null,null,null,null,null,null,null,null,null,null,null,null,null,null,""]
[]
[]
[null,"Díjfizetési gyakoriság:"]
[]
[null,"Előzménybetegségek kiterjesztése:"]
[null,"Terhesgondozás extra éves díja:",null,null,null,null,null,null,null,null,null,null,null,null,null,"Ft"]
[null,null,null,null,null,null,null,{"$f":"IF(AND(countcsoport=2,SUM(csoportinput1,csoportinput2)<>Nagykoruosszjogi),\"A csoportok létszáma nem egyenlő a biztosítottak létszámával!\",IF(AND(countcsoport=3,SUM(csoportinput1,csoportinput2,csoportinput3)<>Nagykoruosszjogi),\"A csoportok létszáma nem egyenlő a biztosítottak létszámával!\",IF(AND(countcsoport=4,SUM(csoportinput1,csoportinput2,csoportinput3,csoportinput4)<>Nagykoruosszjogi),\"A csoportok létszáma nem egyenlő a biztosítottak létszámával!\",IF(AND(countcsoport=5,SUM(csoportinput1,csoportinput2,csoportinput3,csoportinput4,csoportinput5)<>Nagykoruosszjogi),\"A csoportok létszáma nem egyenlő a biztosítottak létszámával!\",IF(AND(countcsoport=6,SUM(csoportinput1,csoportinput2,csoportinput3,csoportinput4,csoportinput5,csoportinput6)<>Nagykoruosszjogi),\"A csoportok létszáma nem egyenlő a biztosítottak létszámával!\",\"\")))))","v":""}]
[null,"Összes éves díj:",null,null,null,null,null,{"$f":"IFERROR(IF(H24=\"\",SUM(AQ86:AS91,TerhesGond),0),0)","v":0},null,null,null,null,null,null,null,"Ft"]
[null,"Gyakoriság szerint fizetendő díj:",null,null,null,null,null,null,null,null,{"$f":"SUM(AP86:AP91)","v":0},null,null,null,null,"Ft / gyakoriság"]
[]
[]
[]
[]
[null,"Kelt:",null,null,null,null,null,null,",",null,null,null,"év",null,null,"hó",null,null,"nap"]
[]
[]
[null,null,null,null,null,null,null,null,null,null,null,null,null,null,null,null,null,null,null,null,null,null,null,null,"Szerződő aláírása"]
[]
[]
[]
[null,null,null,null,null,null,null,null,null,null,null,null,null,null,null,null,null,null,null,null,null,"Biztosításközvetítő aláírása"]
[]
[]
[]
[]
[]
[]
[]
[]
[]
[]
[]
[]
[]
[]
[]
[]
[]
[]
[]
[]
[]
[]
[]
[]
[]
[]
[]
[]
[]
[]
[]
[]
[null,null,null,null,null,null,null,null,null,null,null,null,null,null,null,null,null,null,1,7]
[null,null,"Díj fiz gy",null,"éves",null,4,null,null,null,null,"Cafeteria",null,1,null,"Csoport szám",null,null,2,7,null,null,null,null,null,null,"előzmény betegség",null,null,null,{"$f":"IFERROR(IF(AND(C90,Nagykoruosszjogi>9),(SUM(AT86:AU91)*Letszamkedvjogi+TerhesGond)*0.4,0),0)","v":0},null,null,null,null,"Ft"]
[null,null,null,null,"féléves",null,null,null,null,null,null,null,null,null,null,null,null,null,3,7]
[null,null,null,null,"negyedéves",null,null,null,null,null,null,null,null,null,null,null,null,null,4]
[null,null,null,null,"havi",null,null,null,null,null,null,null,null,null,null,null,null,null,5]
[null,null,null,null,null,null,null,null,null,null,null,null,null,null,null,null,null,null,6]
[]
[null,null,"Alapszolgáltatások",null,null,null,null,null,"Éves limit",null,null,null,null,"szűrővizsgálat",null,null,null,null,null,"Kórházi csomag",null,null,null,null,"Hope Plusz"]
[null,null,"igen",null,null,1,null,null,"egyszeres",null,null,null,null,"nem",null,null,null,null,null,"nem",null,null,null,null,"nem"]
[null,null,"családi kiterjesztés",null,null,null,null,null,"kétszeres",null,null,null,null,"közepes",null,null,null,null,null,"igen",null,null,null,null,"Arany"]
[null,null,null,null,null,null,null,null,"limit nélkül",null,null,null,null,"személyreszabott",null,null,null,null,null,null,null,null,null,null,"Ezüst"]
[]
[null,null,null,null,null,null,null,null,null,null,null,null,null,null,null,null,null,null,null,null,null,null,null,null,null,null,null,null,null,null,null,null,null,null,null,null,null,{"$f":"IFERROR(IF(countember>0,SUM(Y86:AH86),0),0)","v":0}]
[]
[null,null,null,null,null,null,null,null,"Ember",null,"Index","Alapszolg",null,null,"Eves limit",null,"Szűrővizsg",null,null,"Kórházi",null,"HopePlusz",null,null,"Alptarifa",null,null,"Szürővizsgdíj",null,null,"Kórházi csomag",null,null,null,"Hope Plusz",null,null,"Díj/csoport",null,null,"Létszámkedv","Díjfiz gyakoriság","Csoport Díj",null,null,"Csop Díj szűrv vizsg és hope plsuz nélkül előzménybetegség számolásához"]
[null,null,"Létszám kedvezmény:",null,null,null,null,null,{"$f":"ROMAN(1)","v":"I"},null,{"$f":"IF(O86=1,IF(R86=1,2,IF(R86=2,3,2)),IF(O86=2,(IF(R86=1,4,(IF(R86=2,5,IF(R86=3,11,4))))),(IF(O86=3,IF(R86=1,6,IF(R86=2,7,IF(R86=3,12,6))),IF(O86=4,-1,\"\")))))","v":-1},null,null,null,4,null,null,0,null,0,null,null,0,null,{"$f":"IF(K86=-1,tarifaPro!$P$3,IF(OR(K86=3,K86=5,K86=7),VLOOKUP(AvgEletkorjogi,tarifaPro!$A$3:$L$54,(K86-1)),IF(K86=11,VLOOKUP(AvgEletkorjogi,tarifaPro!$A$3:$L$54,4),IF(K86=12,VLOOKUP(AvgEletkorjogi,tarifaPro!$A$3:$L$54,6),VLOOKUP(AvgEletkorjogi,tarifaPro!$A$3:$L$54,K86)))))","v":150000},null,null,{"$f":"IF(K86=-1,tarifaPro!$P$3,VLOOKUP(AvgEletkorjogi,tarifaPro!$A$3:$L$54,K86))-Y86","v":0},null,null,{"$f":" IF(T86<>2,0,VLOOKUP(AvgEletkorjogi,tarifaPro!$A$3:$J$54,OszlopIndexKorhazi))","v":0},null,null,null,{"$f":" IF(W86=3,VLOOKUP(AvgEletkorjogi,tarifaPro!$A$3:$J$54,OszlopIndexHopePluszEzust),IF(W86=2,VLOOKUP(AvgEletkorjogi,tarifaPro!$A$3:$J$54,OszlopIndexHopePluszArany),0))","v":0},null,null,{"$f":"IFERROR(IF(AND(cafeteria=1,O86=4),0,IF(AND(countcsoport>0,countcsoport<>7),SUM(Y86:AK86),0)),0)","v":0},null,null,{"$f":"IF(O86=4,AL86,IF(cafeteria=2,AL86,AL86*Letszamkedvjogi))+IFERROR(IF(AND($C$90,Nagykoruosszjogi>9,K86<>-1,AL86<>0),((AL86-AB86-AI86)*Letszamkedvjogi)*0.4,0),0)","v":0},{"$f":"ROUND(IF(gyakorisagjogi=1,AO86,IF(gyakorisagjogi=2,AO86/2,IF(gyakorisagjogi=3,AO86/4,IF(gyakorisagjogi=4,AO86/12,0)))),0)*csoportinput1","v":0},{"$f":"AO86*csoportinput1","v":0},null,null,{"$f":"IFERROR(IF(K86=-1,0,(AL86-AB86-AI86)*csoportinput1),0)","v":0}]
[null,null,{"$f":"IFERROR(IF(IF(Nagykoruosszjogi=\"\",1,Nagykoruosszjogi)>100,0.8,LOOKUP(Nagykoruosszjogi,tarifaPro!A59:A158,tarifaPro!B59:B158)),1)","v":1},null,null,null,null,null,{"$f":"ROMAN(2)","v":"II"},null,{"$f":"IF(O87=1,IF(R87=1,2,IF(R87=2,3,2)),IF(O87=2,(IF(R87=1,4,(IF(R87=2,5,IF(R87=3,11,4))))),(IF(O87=3,IF(R87=1,6,IF(R87=2,7,IF(R87=3,12,6))),IF(O87=4,-1,\"\")))))","v":-1},null,null,null,4,null,null,0,null,0,null,null,0,null,{"$f":"IF(K87=-1,tarifaPro!$P$3,IF(OR(K87=3,K87=5,K87=7),VLOOKUP(AvgEletkorjogi,tarifaPro!$A$3:$L$54,(K87-1)),IF(K87=11,VLOOKUP(AvgEletkorjogi,tarifaPro!$A$3:$L$54,4),IF(K87=12,VLOOKUP(AvgEletkorjogi,tarifaPro!$A$3:$L$54,6),VLOOKUP(AvgEletkorjogi,tarifaPro!$A$3:$L$54,K87)))))","v":150000},null,null,{"$f":"IF(K87=-1,tarifaPro!$P$3,VLOOKUP(AvgEletkorjogi,tarifaPro!$A$3:$L$54,K87))-Y87","v":0},null,null,{"$f":" IF(T87<>2,0,VLOOKUP(AvgEletkorjogi,tarifaPro!$A$3:$J$54,OszlopIndexKorhazi))","v":0},null,null,null,{"$f":" IF(W87=3,VLOOKUP(AvgEletkorjogi,tarifaPro!$A$3:$J$54,OszlopIndexHopePluszEzust),IF(W87=2,VLOOKUP(AvgEletkorjogi,tarifaPro!$A$3:$J$54,OszlopIndexHopePluszArany),0))","v":0},null,null,{"$f":"IFERROR(IF(AND(cafeteria=1,O87=4),0,IF(AND(countcsoport>1,countcsoport<>7),SUM(Y87:AK87),0)),0)","v":0},null,null,0,{"$f":"ROUND(IF(gyakorisagjogi=1,AO87,IF(gyakorisagjogi=2,AO87/2,IF(gyakorisagjogi=3,AO87/4,IF(gyakorisagjogi=4,AO87/12,0)))),0)*csoportinput2","v":0},{"$f":"AO87*csoportinput2","v":0},null,null,{"$f":"IFERROR(IF(K87=-1,0,(AL87-AB87-AI87)*csoportinput2),0)","v":0}]
[null,null,null,null,null,null,null,null,{"$f":"ROMAN(3)","v":"III"},null,-1,null,null,null,4,null,null,0,null,0,null,null,0,null,{"$f":"IF(K88=-1,tarifaPro!$P$3,IF(OR(K88=3,K88=5,K88=7),VLOOKUP(AvgEletkorjogi,tarifaPro!$A$3:$L$54,(K88-1)),IF(K88=11,VLOOKUP(AvgEletkorjogi,tarifaPro!$A$3:$L$54,4),IF(K88=12,VLOOKUP(AvgEletkorjogi,tarifaPro!$A$3:$L$54,6),VLOOKUP(AvgEletkorjogi,tarifaPro!$A$3:$L$54,K88)))))","v":150000},null,null,{"$f":"IF(K88=-1,tarifaPro!$P$3,VLOOKUP(AvgEletkorjogi,tarifaPro!$A$3:$L$54,K88))-Y88","v":0},null,null,{"$f":" IF(T88<>2,0,VLOOKUP(AvgEletkorjogi,tarifaPro!$A$3:$J$54,OszlopIndexKorhazi))","v":0},null,null,null,{"$f":" IF(W88=3,VLOOKUP(AvgEletkorjogi,tarifaPro!$A$3:$J$54,OszlopIndexHopePluszEzust),IF(W88=2,VLOOKUP(AvgEletkorjogi,tarifaPro!$A$3:$J$54,OszlopIndexHopePluszArany),0))","v":0},null,null,{"$f":"IFERROR(IF(AND(cafeteria=1,O88=4),0,IF(AND(countcsoport>2,countcsoport<>7),SUM(Y88:AK88),0)),0)","v":0},null,null,0,{"$f":"ROUND(IF(gyakorisagjogi=1,AO88,IF(gyakorisagjogi=2,AO88/2,IF(gyakorisagjogi=3,AO88/4,IF(gyakorisagjogi=4,AO88/12,0)))),0)*csoportinput3","v":0},{"$f":"AO88*csoportinput3","v":0},null,null,{"$f":"IFERROR(IF(K88=-1,0,(AL88-AB88-AI88)*csoportinput3),0)","v":0}]
[null,null,"Előzménybetegség pótdíja",null,null,null,null,null,{"$f":"ROMAN(4)","v":"IV"},null,-1,null,null,null,4,null,null,0,null,0,null,null,0,null,{"$f":"IF(K89=-1,tarifaPro!$P$3,IF(OR(K89=3,K89=5,K89=7),VLOOKUP(AvgEletkorjogi,tarifaPro!$A$3:$L$54,(K89-1)),IF(K89=11,VLOOKUP(AvgEletkorjogi,tarifaPro!$A$3:$L$54,4),IF(K89=12,VLOOKUP(AvgEletkorjogi,tarifaPro!$A$3:$L$54,6),VLOOKUP(AvgEletkorjogi,tarifaPro!$A$3:$L$54,K89)))))","v":150000},null,null,{"$f":"IF(K89=-1,tarifaPro!$P$3,VLOOKUP(AvgEletkorjogi,tarifaPro!$A$3:$L$54,K89))-Y89","v":0},null,null,{"$f":" IF(T89<>2,0,VLOOKUP(AvgEletkorjogi,tarifaPro!$A$3:$J$54,OszlopIndexKorhazi))","v":0},null,null,null,{"$f":" IF(W89=3,VLOOKUP(AvgEletkorjogi,tarifaPro!$A$3:$J$54,OszlopIndexHopePluszEzust),IF(W89=2,VLOOKUP(AvgEletkorjogi,tarifaPro!$A$3:$J$54,OszlopIndexHopePluszArany),0))","v":0},null,null,{"$f":"IFERROR(IF(AND(cafeteria=1,O89=4),0,IF(AND(countcsoport>3,countcsoport<>7),SUM(Y89:AK89),0)),0)","v":0},null,null,0,{"$f":"ROUND(IF(gyakorisagjogi=1,AO89,IF(gyakorisagjogi=2,AO89/2,IF(gyakorisagjogi=3,AO89/4,IF(gyakorisagjogi=4,AO89/12,0)))),0)*csoportinput4","v":0},{"$f":"AO89*csoportinput4","v":0},null,null,{"$f":"IFERROR(IF(K89=-1,0,(AL89-AB89-AI89)*csoportinput4),0)","v":0}]
[null,null,false,null,null,null,null,null,{"$f":"ROMAN(5)","v":"V"},null,-1,null,null,null,4,null,null,0,null,0,null,null,0,null,{"$f":"IF(K90=-1,tarifaPro!$P$3,IF(OR(K90=3,K90=5,K90=7),VLOOKUP(AvgEletkorjogi,tarifaPro!$A$3:$L$54,(K90-1)),IF(K90=11,VLOOKUP(AvgEletkorjogi,tarifaPro!$A$3:$L$54,4),IF(K90=12,VLOOKUP(AvgEletkorjogi,tarifaPro!$A$3:$L$54,6),VLOOKUP(AvgEletkorjogi,tarifaPro!$A$3:$L$54,K90)))))","v":150000},null,null,{"$f":"IF(K90=-1,tarifaPro!$P$3,VLOOKUP(AvgEletkorjogi,tarifaPro!$A$3:$L$54,K90))-Y90","v":0},null,null,{"$f":" IF(T90<>2,0,VLOOKUP(AvgEletkorjogi,tarifaPro!$A$3:$J$54,OszlopIndexKorhazi))","v":0},null,null,null,{"$f":" IF(W90=3,VLOOKUP(AvgEletkorjogi,tarifaPro!$A$3:$J$54,OszlopIndexHopePluszEzust),IF(W90=2,VLOOKUP(AvgEletkorjogi,tarifaPro!$A$3:$J$54,OszlopIndexHopePluszArany),0))","v":0},null,null,{"$f":"IFERROR(IF(AND(cafeteria=1,O90=4),0,IF(AND(countcsoport>4,countcsoport<>7),SUM(Y90:AK90),0)),0)","v":0},null,null,0,{"$f":"ROUND(IF(gyakorisagjogi=1,AO90,IF(gyakorisagjogi=2,AO90/2,IF(gyakorisagjogi=3,AO90/4,IF(gyakorisagjogi=4,AO90/12,0)))),0)*csoportinput5","v":0},{"$f":"AO90*csoportinput5","v":0},null,null,{"$f":"IFERROR(IF(K90=-1,0,(AL90-AB90-AI90)*csoportinput5),0)","v":0}]
[null,null,null,null,null,null,null,null,{"$f":"ROMAN(6)","v":"VI"},null,-1,null,null,null,4,null,null,0,null,0,null,null,0,null,{"$f":"IF(K91=-1,tarifaPro!$P$3,IF(OR(K91=3,K91=5,K91=7),VLOOKUP(AvgEletkorjogi,tarifaPro!$A$3:$L$54,(K91-1)),IF(K91=11,VLOOKUP(AvgEletkorjogi,tarifaPro!$A$3:$L$54,4),IF(K91=12,VLOOKUP(AvgEletkorjogi,tarifaPro!$A$3:$L$54,6),VLOOKUP(AvgEletkorjogi,tarifaPro!$A$3:$L$54,K91)))))","v":150000},null,null,{"$f":"IF(K91=-1,tarifaPro!$P$3,VLOOKUP(AvgEletkorjogi,tarifaPro!$A$3:$L$54,K91))-Y91","v":0},null,null,{"$f":" IF(T91<>2,0,VLOOKUP(AvgEletkorjogi,tarifaPro!$A$3:$J$54,OszlopIndexKorhazi))","v":0},null,null,null,{"$f":" IF(W91=3,VLOOKUP(AvgEletkorjogi,tarifaPro!$A$3:$J$54,OszlopIndexHopePluszEzust),IF(W91=2,VLOOKUP(AvgEletkorjogi,tarifaPro!$A$3:$J$54,OszlopIndexHopePluszArany),0))","v":0},null,null,{"$f":"IFERROR(IF(AND(cafeteria=1,O91=4),0,IF(AND(countcsoport>5,countcsoport<>7),SUM(Y91:AK91),0)),0)","v":0},null,null,0,{"$f":"ROUND(IF(gyakorisagjogi=1,AO91,IF(gyakorisagjogi=2,AO91/2,IF(gyakorisagjogi=3,AO91/4,IF(gyakorisagjogi=4,AO91/12,0)))),0)*csoportinput6","v":0},{"$f":"AO91*csoportinput6","v":0},null,null,{"$f":"IFERROR(IF(K91=-1,0,(AL91-AB91-AI91)*csoportinput6),0)","v":0}]
[null,null,null,null,null,null,null,null,{"$f":"ROMAN(7)","v":"VII"},null,""]
[null,null,null,null,null,null,null,null,{"$f":"ROMAN(8)","v":"VIII"},null,""]
[null,null,null,null,null,null,null,null,{"$f":"ROMAN(9)","v":"IX"},null,""]
[null,null,null,null,null,null,null,null,{"$f":"ROMAN(10)","v":"X"},null,""]
[]
[]
[null,null,null,null,null,null,null,null,null,null,null,null,null,null,null,null,null,null,null,null,null,null,null,null,null,null,null,null,null,null,null,null,null,null,null,null,null,null,"h3 o3 v4"]

{"sheet":"részletező jogi szem.szerz","index":6,"n_rows":107,"n_cols":32,"rows_kept":107,"cut":false,"hidden":true,"merged":[[4,2,4,3],[0,0,0,17],[1,0,1,17],[3,1,3,3],[3,5,3,15]]}
["PrivateMed Pro csoportos egészségbiztosítás"]
["Részletező jogi személyeknek a szerződéskötéskor"]
[null,null,null,null,null,null,null,null,null,null,null,null,null,null,null,null,null,null,null,null,null,null,null,null,null,null,null,"Gyakoriság","Dijfizmod"]
["Szerződő neve:",null,null,null,null,null,null,null,null,null,null,null,null,null,null,null,null,null,null,null,null,null,null,null,null,null,null,{"$f":"gyakorisagjogi","v":4},{"$f":"dijfizmod","v":2}]
["Dátum:",{"$f":"IF(bizt.ev>2000,DATE(bizt.ev,bizt.ho,Ajánlat!P45),\"Ajánlat nincs kitöltve\")","v":"Ajánlat nincs kitöltve"},"Csoportos Átlagkor:",null,{"$f":"IF(D8<>\"\",AVERAGEIF(E8:E107,\">18\"),\"\")","v":""},"Szerződésszám:"]
[]
["Csoport","Biztosított vezetékneve","Biztosított keresztneve","Születési ideje","Kor","Anyja neve","Telefon\n(+36)","Irányítószám","Helység","Utca, Házszám","Emelet / Ajtó","TAJ szám vagy egyéb okmány szám","Választott csomag","Szűrővizsgálat","Kórházi csomag","Hope Plusz","Előzmény-betegség","Alszerződésszám",null,null,null,null,null,null,null,null,null,null,"Csomag","Szűrő","Kórházi","Hope"]
[null,null,null,null,{"$f":"IF(D8<>\"\",YEAR(TODAY())-YEAR(D8),\"\")","v":""},null,null,null,null,null,null,null,{"$f":"IF(A8=$Y$8,$AC$8,IF(A8=$Y$9,$AC$9,IF(A8=$Y$10,$AC$10,IF(A8=$Y$11,$AC$11,IF(A8=$Y$12,$AC$12,IF(A8=$Y$13,$AC$13,\"\"))))))","v":""},{"$f":"IF(A8=$Y$8,$AD$8,IF(A8=$Y$9,$AD$9,IF(A8=$Y$10,$AD$10,IF(A8=$Y$11,$AD$11,IF(A8=$Y$12,$AD$12,IF(A8=$Y$13,$AD$13,\"\"))))))","v":""},{"$f":"IF(A8=$Y$8,$AE$8,IF(A8=$Y$9,$AE$9,IF(A8=$Y$10,$AE$10,IF(A8=$Y$11,$AE$11,IF(A8=$Y$12,$AE$12,IF(A8=$Y$13,$AE$13,\"\"))))))","v":""},{"$f":"IF(A8=$Y$8,$AF$8,IF(A8=$Y$9,$AF$9,IF(A8=$Y$10,$AF$10,IF(A8=$Y$11,$AF$11,IF(A8=$Y$12,$AF$12,IF(A8=$Y$13,$AF$13,\"\"))))))","v":""},{"$f":"IF(elozmenyjogi,\"igen\",\"nem\")","v":"nem"},null,null,"igen","egyszeres","nem","nem","nem","1. csoport",null,null,null,{"$f":"IF(AND(countcsoport>0,countcsoport<>7),IF('Díjszámítás jogi szem.szerz'!O86=1,'részletező jogi szem.szerz'!$U$8,IF('Díjszámítás jogi szem.szerz'!O86=2,'részletező jogi szem.szerz'!$U$9,IF('Díjszámítás jogi szem.szerz'!O86=3,'részletező jogi szem.szerz'!$U$10,IF(AND('Díjszámítás jogi szem.szerz'!O86=4,cafeteria<>1),'részletező jogi szem.szerz'!$U$11,\"\")))),\"\")","v":""},{"$f":"IF('Díjszámítás jogi szem.szerz'!R86=1,$V$8,IF('Díjszámítás jogi szem.szerz'!R86=2,$V$9,IF('Díjszámítás jogi szem.szerz'!R86=3,$V$10,\"\")))","v":""},{"$f":"IF('Díjszámítás jogi szem.szerz'!T86=1,$W$8,IF('Díjszámítás jogi szem.szerz'!T86=2,$W$9,\"\"))","v":""},{"$f":"IF('Díjszámítás jogi szem.szerz'!W86=1,$X$8,IF('Díjszámítás jogi szem.szerz'!W86=2,$X$9,IF('Díjszámítás jogi szem.szerz'!W86=3,$X$10,\"\")))","v":""}]
[null,null,null,null,"",null,null,null,null,null,null,null,{"$f":"IF(A9=$Y$8,$AC$8,IF(A9=$Y$9,$AC$9,IF(A9=$Y$10,$AC$10,IF(A9=$Y$11,$AC$11,IF(A9=$Y$12,$AC$12,IF(A9=$Y$13,$AC$13,\"\"))))))","v":""},{"$f":"IF(A9=$Y$8,$AD$8,IF(A9=$Y$9,$AD$9,IF(A9=$Y$10,$AD$10,IF(A9=$Y$11,$AD$11,IF(A9=$Y$12,$AD$12,IF(A9=$Y$13,$AD$13,\"\"))))))","v":""},{"$f":"IF(A9=$Y$8,$AE$8,IF(A9=$Y$9,$AE$9,IF(A9=$Y$10,$AE$10,IF(A9=$Y$11,$AE$11,IF(A9=$Y$12,$AE$12,IF(A9=$Y$13,$AE$13,\"\"))))))","v":""},{"$f":"IF(A9=$Y$8,$AF$8,IF(A9=$Y$9,$AF$9,IF(A9=$Y$10,$AF$10,IF(A9=$Y$11,$AF$11,IF(A9=$Y$12,$AF$12,IF(A9=$Y$13,$AF$13,\"\"))))))","v":""},"nem",null,null,null,"kétszeres","közepes","igen","Arany","2. csoport",null,null,null,{"$f":"IF(AND(countcsoport>1,countcsoport<>7),IF('Díjszámítás jogi szem.szerz'!O87=1,'részletező jogi szem.szerz'!$U$8,IF('Díjszámítás jogi szem.szerz'!O87=2,'részletező jogi szem.szerz'!$U$9,IF('Díjszámítás jogi szem.szerz'!O87=3,'részletező jogi szem.szerz'!$U$10,IF(AND('Díjszámítás jogi szem.szerz'!O87=4,cafeteria<>1),'részletező jogi szem.szerz'!$U$11,\"\")))),\"\")","v":""},{"$f":"IF('Díjszámítás jogi szem.szerz'!R87=1,$V$8,IF('Díjszámítás jogi szem.szerz'!R87=2,$V$9,IF('Díjszámítás jogi szem.szerz'!R87=3,$V$10,\"\")))","v":""},{"$f":"IF('Díjszámítás jogi szem.szerz'!T87=1,$W$8,IF('Díjszámítás jogi szem.szerz'!T87=2,$W$9,\"\"))","v":""},{"$f":"IF('Díjszámítás jogi szem.szerz'!W87=1,$X$8,IF('Díjszámítás jogi szem.szerz'!W87=2,$X$9,IF('Díjszámítás jogi szem.szerz'!W87=3,$X$10,\"\")))","v":""}]
[null,null,null,null,"",null,null,null,null,null,null,null,"","","","","nem",null,null,null,"limit nélkül","személyreszabott",null,"Ezüst","3. csoport",null,null,null,{"$f":"IF(AND(countcsoport>2,countcsoport<>7),IF('Díjszámítás jogi szem.szerz'!O88=1,'részletező jogi szem.szerz'!$U$8,IF('Díjszámítás jogi szem.szerz'!O88=2,'részletező jogi szem.szerz'!$U$9,IF('Díjszámítás jogi szem.szerz'!O88=3,'részletező jogi szem.szerz'!$U$10,IF(AND('Díjszámítás jogi szem.szerz'!O88=4,cafeteria<>1),'részletező jogi szem.szerz'!$U$11,\"\")))),\"\")","v":""},{"$f":"IF('Díjszámítás jogi szem.szerz'!R88=1,$V$8,IF('Díjszámítás jogi szem.szerz'!R88=2,$V$9,IF('Díjszámítás jogi szem.szerz'!R88=3,$V$10,\"\")))","v":""},{"$f":"IF('Díjszámítás jogi szem.szerz'!T88=1,$W$8,IF('Díjszámítás jogi szem.szerz'!T88=2,$W$9,\"\"))","v":""},{"$f":"IF('Díjszámítás jogi szem.szerz'!W88=1,$X$8,IF('Díjszámítás jogi szem.szerz'!W88=2,$X$9,IF('Díjszámítás jogi szem.szerz'!W88=3,$X$10,\"\")))","v":""}]
[null,null,null,null,"",null,null,null,null,null,null,null,"","","","","nem",null,null,null,"családi kiterjesztés",null,null,null,"4. csoport",null,null,null,{"$f":"IF(AND(countcsoport>3,countcsoport<>7),IF('Díjszámítás jogi szem.szerz'!O89=1,'részletező jogi szem.szerz'!$U$8,IF('Díjszámítás jogi szem.szerz'!O89=2,'részletező jogi szem.szerz'!$U$9,IF('Díjszámítás jogi szem.szerz'!O89=3,'részletező jogi szem.szerz'!$U$10,IF(AND('Díjszámítás jogi szem.szerz'!O89=4,cafeteria<>1),'részletező jogi szem.szerz'!$U$11,\"\")))),\"\")","v":""},{"$f":"IF('Díjszámítás jogi szem.szerz'!R89=1,$V$8,IF('Díjszámítás jogi szem.szerz'!R89=2,$V$9,IF('Díjszámítás jogi szem.szerz'!R89=3,$V$10,\"\")))","v":""},{"$f":"IF('Díjszámítás jogi szem.szerz'!T89=1,$W$8,IF('Díjszámítás jogi szem.szerz'!T89=2,$W$9,\"\"))","v":""},{"$f":"IF('Díjszámítás jogi szem.szerz'!W89=1,$X$8,IF('Díjszámítás jogi szem.szerz'!W89=2,$X$9,IF('Díjszámítás jogi szem.szerz'!W89=3,$X$10,\"\")))","v":""}]
[null,null,null,null,"",null,null,null,null,null,null,null,"","","","","nem",null,null,null,null,null,null,null,"5. csoport",null,null,null,{"$f":"IF(AND(countcsoport>4,countcsoport<>7),IF('Díjszámítás jogi szem.szerz'!O90=1,'részletező jogi szem.szerz'!$U$8,IF('Díjszámítás jogi szem.szerz'!O90=2,'részletező jogi szem.szerz'!$U$9,IF('Díjszámítás jogi szem.szerz'!O90=3,'részletező jogi szem.szerz'!$U$10,IF(AND('Díjszámítás jogi szem.szerz'!O90=4,cafeteria<>1),'részletező jogi szem.szerz'!$U$11,\"\")))),\"\")","v":""},{"$f":"IF('Díjszámítás jogi szem.szerz'!R90=1,$V$8,IF('Díjszámítás jogi szem.szerz'!R90=2,$V$9,IF('Díjszámítás jogi szem.szerz'!R90=3,$V$10,\"\")))","v":""},{"$f":"IF('Díjszámítás jogi szem.szerz'!T90=1,$W$8,IF('Díjszámítás jogi szem.szerz'!T90=2,$W$9,\"\"))","v":""},{"$f":"IF('Díjszámítás jogi szem.szerz'!W90=1,$X$8,IF('Díjszámítás jogi szem.szerz'!W90=2,$X$9,IF('Díjszámítás jogi szem.szerz'!W90=3,$X$10,\"\")))","v":""}]
[null,null,null,null,"",null,null,null,null,null,null,null,"","","","","nem",null,null,null,null,null,null,null,"6. csoport",null,null,null,{"$f":"IF(AND(countcsoport>5,countcsoport<>7),IF('Díjszámítás jogi szem.szerz'!O91=1,'részletező jogi szem.szerz'!$U$8,IF('Díjszámítás jogi szem.szerz'!O91=2,'részletező jogi szem.szerz'!$U$9,IF('Díjszámítás jogi szem.szerz'!O91=3,'részletező jogi szem.szerz'!$U$10,IF(AND('Díjszámítás jogi szem.szerz'!O91=4,cafeteria<>1),'részletező jogi szem.szerz'!$U$11,\"\")))),\"\")","v":""},{"$f":"IF('Díjszámítás jogi szem.szerz'!R91=1,$V$8,IF('Díjszámítás jogi szem.szerz'!R91=2,$V$9,IF('Díjszámítás jogi szem.szerz'!R91=3,$V$10,\"\")))","v":""},{"$f":"IF('Díjszámítás jogi szem.szerz'!T91=1,$W$8,IF('Díjszámítás jogi szem.szerz'!T91=2,$W$9,\"\"))","v":""},{"$f":"IF('Díjszámítás jogi szem.szerz'!W91=1,$X$8,IF('Díjszámítás jogi szem.szerz'!W91=2,$X$9,IF('Díjszámítás jogi szem.szerz'!W91=3,$X$10,\"\")))","v":""}]
[null,null,null,null,"",null,null,null,null,null,null,null,"","","","","nem",null,null,"Sor azonosito"]
[null,null,null,null,"",null,null,null,null,null,null,null,"","","","","nem",null,null,7]
[null,null,null,null,"",null,null,null,null,null,null,null,"","","","","nem",null,null,"Család Azonosító","Vezetéknév","Keresztnév","Szül. dát","Anyja neve"]
[null,null,null,null,"",null,null,null,null,null,null,null,"","","","","nem"]
[null,null,null,null,"",null,null,null,null,null,null,null,"","","","","nem"]
[null,null,null,null,"",null,null,null,null,null,null,null,"","","","","nem"]
[null,null,null,null,"",null,null,null,null,null,null,null,"","","","","nem"]
[null,null,null,null,"",null,null,null,null,null,null,null,"","","","","nem"]
[null,null,null,null,"",null,null,null,null,null,null,null,"","","","","nem"]
[null,null,null,null,"",null,null,null,null,null,null,null,"","","","","nem"]
[null,null,null,null,"",null,null,null,null,null,null,null,"","","","","nem"]
[null,null,null,null,"",null,null,null,null,null,null,null,"","","","","nem"]
[null,null,null,null,"",null,null,null,null,null,null,null,"","","","","nem"]
[null,null,null,null,"",null,null,null,null,null,null,null,"","","","","nem"]
[null,null,null,null,"",null,null,null,null,null,null,null,"","","","","nem"]
[null,null,null,null,"",null,null,null,null,null,null,null,"","","","","nem"]
[null,null,null,null,"",null,null,null,null,null,null,null,"","","","","nem"]
[null,null,null,null,"",null,null,null,null,null,null,null,"","","","","nem"]
[null,null,null,null,"",null,null,null,null,null,null,null,"","","","","nem"]
[null,null,null,null,"",null,null,null,null,null,null,null,"","","","","nem"]
[null,null,null,null,"",null,null,null,null,null,null,null,"","","","","nem"]
[null,null,null,null,"",null,null,null,null,null,null,null,"","","","","nem"]
[null,null,null,null,"",null,null,null,null,null,null,null,"","","","","nem"]
[null,null,null,null,"",null,null,null,null,null,null,null,"","","","","nem"]
[null,null,null,null,"",null,null,null,null,null,null,null,"","","","","nem"]
[null,null,null,null,"",null,null,null,null,null,null,null,"","","","","nem"]
[null,null,null,null,"",null,null,null,null,null,null,null,"","","","","nem"]
[null,null,null,null,"",null,null,null,null,null,null,null,"","","","","nem"]
[null,null,null,null,"",null,null,null,null,null,null,null,"","","","","nem"]
[null,null,null,null,"",null,null,null,null,null,null,null,"","","","","nem"]
[null,null,null,null,"",null,null,null,null,null,null,null,"","","","","nem"]
[null,null,null,null,"",null,null,null,null,null,null,null,"","","","","nem"]
[null,null,null,null,"",null,null,null,null,null,null,null,"","","","","nem"]
[null,null,null,null,"",null,null,null,null,null,null,null,"","","","","nem"]
[null,null,null,null,"",null,null,null,null,null,null,null,"","","","","nem"]
[null,null,null,null,"",null,null,null,null,null,null,null,"","","","","nem"]
[null,null,null,null,"",null,null,null,null,null,null,null,"","","","","nem"]
[null,null,null,null,"",null,null,null,null,null,null,null,"","","","","nem"]
[null,null,null,null,"",null,null,null,null,null,null,null,"","","","","nem"]
[null,null,null,null,"",null,null,null,null,null,null,null,"","","","","nem"]
[null,null,null,null,"",null,null,null,null,null,null,null,"","","","","nem"]
[null,null,null,null,"",null,null,null,null,null,null,null,"","","","","nem"]
[null,null,null,null,"",null,null,null,null,null,null,null,"","","","","nem"]
[null,null,null,null,"",null,null,null,null,null,null,null,"","","","","nem"]
[null,null,null,null,"",null,null,null,null,null,null,null,"","","","","nem"]
[null,null,null,null,"",null,null,null,null,null,null,null,"","","","","nem"]
[null,null,null,null,"",null,null,null,null,null,null,null,"","","","","nem"]
[null,null,null,null,"",null,null,null,null,null,null,null,"","","","","nem"]
[null,null,null,null,"",null,null,null,null,null,null,null,"","","","","nem"]
[null,null,null,null,"",null,null,null,null,null,null,null,"","","","","nem"]
[null,null,null,null,"",null,null,null,null,null,null,null,"","","","","nem"]
[null,null,null,null,"",null,null,null,null,null,null,null,"","","","","nem"]
[null,null,null,null,{"$f":"IF(D66<>\"\",YEAR(TODAY())-YEAR(D66),\"\")","v":""},null,null,null,null,null,null,null,"","","","","nem"]
[null,null,null,null,"",null,null,null,null,null,null,null,"","","","","nem"]
[null,null,null,null,"",null,null,null,null,null,null,null,"","","","","nem"]
[null,null,null,null,"",null,null,null,null,null,null,null,"","","","","nem"]
[null,null,null,null,"",null,null,null,null,null,null,null,"","","","","nem"]
[null,null,null,null,"",null,null,null,null,null,null,null,"","","","","nem"]
[null,null,null,null,"",null,null,null,null,null,null,null,"","","","",{"$f":"IF(elozmenyjogi,\"igen\",\"nem\")","v":"nem"}]
[null,null,null,null,"",null,null,null,null,null,null,null,{"$f":"IF(A73=$Y$8,$AC$8,IF(A73=$Y$9,$AC$9,IF(A73=$Y$10,$AC$10,IF(A73=$Y$11,$AC$11,IF(A73=$Y$12,$AC$12,IF(A73=$Y$13,$AC$13,\"\"))))))","v":""},{"$f":"IF(A73=$Y$8,$AD$8,IF(A73=$Y$9,$AD$9,IF(A73=$Y$10,$AD$10,IF(A73=$Y$11,$AD$11,IF(A73=$Y$12,$AD$12,IF(A73=$Y$13,$AD$13,\"\"))))))","v":""},{"$f":"IF(A73=$Y$8,$AE$8,IF(A73=$Y$9,$AE$9,IF(A73=$Y$10,$AE$10,IF(A73=$Y$11,$AE$11,IF(A73=$Y$12,$AE$12,IF(A73=$Y$13,$AE$13,\"\"))))))","v":""},{"$f":"IF(A73=$Y$8,$AF$8,IF(A73=$Y$9,$AF$9,IF(A73=$Y$10,$AF$10,IF(A73=$Y$11,$AF$11,IF(A73=$Y$12,$AF$12,IF(A73=$Y$13,$AF$13,\"\"))))))","v":""},"nem"]
[null,null,null,null,"",null,null,null,null,null,null,null,"","","","","nem"]
[null,null,null,null,"",null,null,null,null,null,null,null,"","","","","nem"]
[null,null,null,null,"",null,null,null,null,null,null,null,"","","","","nem"]
[null,null,null,null,"",null,null,null,null,null,null,null,"","","","","nem"]
[null,null,null,null,"",null,null,null,null,null,null,null,"","","","","nem"]
[null,null,null,null,"",null,null,null,null,null,null,null,"","","","","nem"]
[null,null,null,null,"",null,null,null,null,null,null,null,"","","","","nem"]
[null,null,null,null,"",null,null,null,null,null,null,null,"","","","","nem"]
[null,null,null,null,"",null,null,null,null,null,null,null,"","","","","nem"]
[null,null,null,null,"",null,null,null,null,null,null,null,"","","","","nem"]
[null,null,null,null,"",null,null,null,null,null,null,null,"","","","","nem"]
[null,null,null,null,"",null,null,null,null,null,null,null,"","","","","nem"]
[null,null,null,null,"",null,null,null,null,null,null,null,"","","","","nem"]
[null,null,null,null,"",null,null,null,null,null,null,null,"","","","","nem"]
[null,null,null,null,"",null,null,null,null,null,null,null,"","","","","nem"]
[null,null,null,null,"",null,null,null,null,null,null,null,"","","","","nem"]
[null,null,null,null,"",null,null,null,null,null,null,null,"","","","","nem"]
[null,null,null,null,"",null,null,null,null,null,null,null,"","","","","nem"]
[null,null,null,null,"",null,null,null,null,null,null,null,"","","","","nem"]
[null,null,null,null,"",null,null,null,null,null,null,null,"","","","","nem"]
[null,null,null,null,"",null,null,null,null,null,null,null,"","","","","nem"]
[null,null,null,null,"",null,null,null,null,null,null,null,"","","","","nem"]
[null,null,null,null,"",null,null,null,null,null,null,null,"","","","","nem"]
[null,null,null,null,"",null,null,null,null,null,null,null,"","","","","nem"]
[null,null,null,null,"",null,null,null,null,null,null,null,"","","","","nem"]
[null,null,null,null,"",null,null,null,null,null,null,null,"","","","","nem"]
[null,null,null,null,"",null,null,null,null,null,null,null,"","","","","nem"]
[null,null,null,null,"",null,null,null,null,null,null,null,"","","","","nem"]
[null,null,null,null,"",null,null,null,null,null,null,null,"","","","","nem"]
[null,null,null,null,"",null,null,null,null,null,null,null,"","","","","nem"]
[null,null,null,null,"",null,null,null,null,null,null,null,"","","","","nem"]
[null,null,null,null,"",null,null,null,null,null,null,null,"","","","","nem"]
[null,null,null,null,"",null,null,null,null,null,null,null,"","","","","nem"]
[null,null,null,null,"",null,null,null,null,null,null,null,"","","","","nem"]

{"sheet":"Ajánlat","index":7,"n_rows":192,"n_cols":40,"rows_kept":192,"cut":false,"hidden":true,"merged":[[160,37,160,38],[123,21,123,30],[120,18,120,28],[122,21,122,30],[121,1,121,23],[153,5,153,8],[153,9,153,12],[160,5,160,8],[135,3,135,8],[160,29,160,30],[135,31,135,36],[134,17,134,22],[135,17,135,22],[134,24,134,29],[135,24,135,29],[131,24,131,29],[129,17,129,22],[128,17,128,22],[134,31,134,36],[131,3,131,8],[128,3,128,8],[132,31,132,36],[48,30,48,37],[72,28,72,30],[50,6,50,17],[113,1,113,38],[116,1,116,12],[103,31,103,38],[103,9,103,30],[92,36,92,37],[94,22,94,24],[92,22,92,24],[92,4,92,18],[99,1,100,38],[96,1,96,35],[94,34,94,35],[94,4,94,18],[110,23,110,28],[116,13,116,32],[116,33,116,38],[115,2,115,30],[78,17,78,24],[77,22,77,24],[110,30,110,31],[90,4,90,18],[102,2,102,30],[75,34,75,38],[75,5,75,14],[79,21,79,26],[78,34,78,37],[74,28,74,30],[74,15,74,18],[128,31,128,36],[128,24,128,29],[91,3,91,37],[94,31,94,32],[79,8,79,12],[78,25,78,29],[75,19,75,24],[75,15,75,18],[78,10,78,14],[77,32,77,36],[77,9,77,13],[75,31,75,33],[75,28,75,30],[94,26,94,29],[92,31,92,32],[83,31,83,32],[89,3,89,37],[94,36,94,37],[0,18,0,19],[0,30,0,31],[3,0,6,0],[117,12,117,16],[117,1,117,6],[112,1,112,38],[104,1,104,25],[97,1,97,38],[32,31,32,32],[110,3,110,16],[33,8,33,37],[32,6,32,17],[0,33,0,34],[17,8,17,37],[37,29,37,37],[32,19,32,22],[16,35,16,36],[22,24,22,28],[25,1,25,8],[41,32,41,33],[41,19,41,21],[41,35,41,36],[57,21,57,23],[81,36,81,37],[28,29,28,30],[28,14,28,19],[38,29,38,37],[24,19,24,29],[44,10,44,13],[22,1,22,7],[22,30,22,31],[34,5,34,31],[39,35,39,36],[26,27,26,37],[26,8,26,23],[27,5,27,22],[31,5,31,20],[40,32,40,33],[28,24,28,27],[44,32,44,33],[28,8,28,12],[25,9,25,29],[41,30,41,31],[40,19,40,21],[40,35,40,36],[38,5,38,21],[32,24,32,29],[37,4,37,21],[173,1,173,2],[172,20,172,24],[170,20,170,25],[166,12,166,14],[171,10,171,11],[166,25,166,26],[171,20,171,24],[167,5,167,9],[167,12,167,14],[167,3,167,4],[172,10,172,11],[172,5,172,7],[171,5,171,7],[71,1,71,4],[83,26,83,29],[90,22,90,24],[41,28,41,29],[73,5,73,14],[81,4,81,18],[81,22,81,24],[80,13,80,20],[73,28,73,30],[71,28,71,30],[63,30,63,35],[74,5,74,14],[77,14,77,21],[51,33,51,35],[56,21,56,23],[72,19,72,24],[58,30,58,35],[72,15,72,18],[72,34,72,38],[74,25,74,27],[62,21,62,23],[60,21,60,23],[71,5,71,14],[71,15,71,18],[178,1,178,6],[179,9,179,10],[175,7,175,11],[175,3,175,4],[177,5,177,6],[175,12,175,14],[176,3,176,4],[179,1,179,4],[177,3,177,4],[176,5,176,6],[179,5,179,6],[175,5,175,6],[170,27,170,28],[163,25,163,26],[119,24,119,34],[27,30,27,33],[55,30,55,37],[67,10,67,11],[56,30,56,35],[39,6,39,21],[39,31,39,33],[131,17,131,22],[167,25,167,26],[164,12,164,14],[135,10,135,15],[132,17,132,22],[159,9,159,12],[31,25,31,37],[44,6,44,8],[40,28,40,29],[40,25,40,26],[41,15,41,17],[41,25,41,26],[35,9,35,37],[36,35,36,37],[40,30,40,31],[180,9,180,10],[178,9,178,11],[67,33,67,34],[72,25,72,27],[73,31,73,33],[74,31,74,33],[73,34,73,38],[164,5,164,9],[161,5,161,8],[73,25,73,27],[75,25,75,27],[161,9,161,12],[118,2,118,12],[174,1,174,2],[162,25,162,26],[169,25,169,26],[168,25,168,26],[165,25,165,26],[164,3,164,4],[168,5,168,6],[165,12,165,14],[166,3,166,4],[170,1,170,3],[179,17,179,20],[170,36,170,38],[81,31,81,32],[163,3,163,8],[164,29,164,30],[160,9,160,12],[161,29,161,30],[169,3,169,4],[125,15,125,24],[165,5,165,9],[166,5,166,9],[168,3,168,4],[153,13,153,16],[170,5,170,8],[158,13,160,16],[158,9,158,12],[131,31,131,36],[134,3,134,8],[159,5,159,8],[129,24,129,29],[93,3,93,37],[165,3,165,4],[132,10,132,15],[132,3,132,8],[131,10,131,15],[162,29,162,30],[164,25,164,26],[134,10,134,15],[19,10,19,37],[48,9,48,24],[34,35,34,37],[34,32,34,34],[16,23,16,25],[16,26,16,28],[132,24,132,29],[28,20,28,22],[40,15,40,17],[129,10,129,15],[30,3,30,37],[129,31,129,36],[39,27,39,29],[36,5,36,31],[129,3,129,8],[67,29,67,30],[24,5,24,18],[24,30,24,37],[27,26,27,28],[27,35,27,36],[61,21,61,23],[20,35,20,37],[20,32,20,34],[18,32,18,34],[18,35,18,37],[21,4,21,21],[23,30,23,37],[22,15,22,19],[23,1,23,7],[22,20,22,22],[21,29,21,37],[20,6,20,31],[18,6,18,31],[14,6,14,26],[7,31,7,37],[6,5,6,13],[9,32,9,37],[16,5,16,22],[14,31,14,37],[15,7,15,37],[17,1,17,7],[14,27,14,30],[16,30,16,33],[5,33,5,37],[6,32,6,37],[26,24,26,26],[13,4,13,37],[23,8,23,21],[23,22,23,29],[128,10,128,15],[12,11,12,15],[8,31,8,37],[6,20,6,26],[9,20,9,26],[118,24,118,34],[85,34,85,35],[92,34,92,35],[70,31,70,38],[67,36,67,37],[73,19,73,24],[110,18,110,21],[36,32,36,34],[24,1,24,4],[25,30,25,31],[5,5,5,13],[10,33,10,35],[5,20,5,26],[57,12,57,14],[74,19,74,24],[72,1,72,4],[75,1,75,4],[74,1,74,4],[73,1,73,4],[90,36,90,37],[57,30,57,35],[87,1,87,28],[85,26,85,29],[83,34,83,35],[82,3,82,37],[85,22,85,24],[90,31,90,32],[69,1,69,9],[85,36,85,37],[85,31,85,32],[67,1,67,9],[85,4,85,18],[61,30,61,35],[60,30,60,35],[71,31,71,33],[62,30,62,35],[71,19,71,24],[64,30,64,35],[67,14,67,18],[67,19,67,20],[71,25,71,27],[74,34,74,38],[63,15,63,17],[71,34,71,38],[73,15,73,18],[72,31,72,33],[72,5,72,14],[92,26,92,29],[83,36,83,37],[83,22,83,24],[90,34,90,35],[90,26,90,29],[80,6,80,11],[80,1,80,5],[81,34,81,35],[81,26,81,29],[80,34,80,37],[80,21,80,26]]}
[32,32,32,32,32,32,32,32,32,32,32,32,32,32,32,32,32,32,32,null,32,32,32,32,32,32,32,32,32,32,32,null,32,32,null,32,32,32,32,32]
[null,null,null,null,null,null,null,null,null,null,null,null,null,null,null,null,null,null,null,null,null,null,null,null,null,null,null,null,null,null,null,null,null,null,null,null,null,null,"PrivateMed Pro"]
[null,{"$f":"IF(OR(cafeteria=2,cafeteria=3),\"Cafeteria\",\"\")","v":""},null,null,null,null,null,null,null,null,null,null,null,null,null,null,null,null,null,null,null,null,null,null,null,null,null,null,null,null,null,null,null,null,null,null,null,null,"csoportos egészségbiztosítási ajánlat"]
[]
[]
[null,"Kötvényszám:",null,null,null,null,null,null,null,null,null,null,null,null,"Biztosításközvetítő neve:",null,null,null,null,null,null,null,null,null,null,null,null,"Biztosításközvetítő kódja:"]
[null,"Befizetett díj:",null,null,null,null,null,null,null,null,null,null,null,null,"Csekkszám:",null,null,null,null,null,null,null,null,null,null,null,null,"Befizetés dátuma:"]
[]
[]
[null,"Adóigazgatási szám: 10491984-4-44",null,null,null,null,null,null,null,null,null,null,null,null,"Ajánlatszám:",null,null,null,null,null,null,null,null,null,null,null,null,"Beérkezett:"]
[null,"Csoport azonosító szám: 17781293-5-44",null,null,null,null,null,null,null,null,null,null,null,null,"Közösségi adószám: HU17781293"]
[]
[null,"Szerződő adatai                "]
[null,"Cég neve:"]
[null,"Születéskori név:",null,null,null,null,null,null,null,null,null,null,null,null,null,null,null,null,null,null,null,null,null,null,null,null,null,"Állampolgárság:"]
[null,"Anyja születéskori neve:"]
[null,"Születési hely:",null,null,null,null,null,null,null,null,null,null,null,null,null,null,null,null,null,null,null,null,null,"Születési idő:",null,null,null,null,null,"év",null,null,null,null,"hó",null,null,"nap"]
[null,"Székhely (Ir. Sz., helység):"]
[null,"Utca, házszám:",null,null,null,null,null,null,null,null,null,null,null,null,null,null,null,null,null,null,null,null,null,null,null,null,null,null,null,null,null,null,"emelet/ajtó"]
[null,"Levelezési cím (Ir. Sz., helység):"]
[null,"Utca, házszám:",null,null,null,null,null,null,null,null,null,null,null,null,null,null,null,null,null,null,null,null,null,null,null,null,null,null,null,null,null,null,"emelet/ajtó"]
[null,"E-mail cím:",null,null,null,null,null,null,null,null,null,null,null,null,null,null,null,null,null,null,null,null,"Telefonszám / mobilszám:"]
[null,"Azonosító okmány típusa:",null,null,null,null,null,null,null,null,null,null,null,null,null,"Érvényesség ideje:",null,null,null,null,null,null,null,"év",null,null,null,null,null,"hó",null,null,"nap"]
[null,"Azonosító okmány száma:",null,null,null,null,null,null,null,null,null,null,null,null,null,null,null,null,null,null,null,null,"Lakcímkártya betűjele és száma:"]
[null,"Kiállító hatóság:",null,null,null,null,null,null,null,null,null,null,null,null,null,null,null,null,null,"Adóazonosító jel / Adószám / Cégjegyzékszám:"]
[null,"Foglalkozás / Fő tevékenység:",null,null,null,null,null,null,null,null,null,null,null,null,null,null,null,null,null,null,null,null,null,null,null,null,null,null,null,null,"Típusa:"]
[null,"Képviseletre jogosult neve:",null,null,null,null,null,null,null,null,null,null,null,null,null,null,null,null,null,null,null,null,null,null,"Beosztása:"]
[]
[]
[null,"A cég képviselőjének adatai",null,null,null,null,null,null,null,null,null,null,null,null,null,null,"Hozzájárulás az okmányaim fénymásolásához:"]
[null,"Neve:"]
[null,"Leánykori neve:",null,null,null,null,null,null,null,null,null,null,null,null,null,null,null,null,null,null,null,null,"Anyja neve:"]
[null,"Születési hely, idő: ",null,null,null,null,null,null,null,null,null,null,null,null,null,null,null,null," ,",null,null,null,null,"év",null,null,null,null,null,null,"hó",null,null,"nap"]
[null,"Lakcím (Ir. sz., helység):"]
[null,"Utca, házszám:",null,null,null,null,null,null,null,null,null,null,null,null,null,null,null,null,null,null,null,null,null,null,null,null,null,null,null,null,null,null,"emelet/ajtó"]
[null,"Levelezési cím (Ir. sz., helység):"]
[null,"Utca, házszám:",null,null,null,null,null,null,null,null,null,null,null,null,null,null,null,null,null,null,null,null,null,null,null,null,null,null,null,null,null,null,"emelet/ajtó"]
[null,"E-mail cím:",null,null,null,null,null,null,null,null,null,null,null,null,null,null,null,null,null,null,null,null,"Telefonszám / mobilszám:"]
[null,"Adóazonosító:",null,null,null,null,null,null,null,null,null,null,null,null,null,null,null,null,null,null,null,null,"Azonosító okmány száma:"]
[null,"Kiállító hatóság: ",null,null,null,null,null,null,null,null,null,null,null,null,null,null,null,null,null,null,null,null,"Érvényességi idő:",null,null,null,null,null,null,null,"év",null,null,null,"hó",null,null,"nap"]
[]
[]
[]
[null,"Biztosítás paraméterei"]
[null,"Biztosítás kezdete:",null,null,null,null,null,null,null,"év",null,null,null,null,"hó","01","nap",null,null,null,null,null,null,"Biztosítás tartama: ",null,null,null,null,"határozott"]
[]
[null,"Díjfizetés gyakorisága:",null,null,null,null,null,{"$f":"IF(SzerzNemeValue=2,IF(gyakorisagjogi=1,Éves,IF(gyakorisagjogi=2,Féléves,IF(gyakorisagjogi=3,Negyedéves,Havi))),IF(SzerzNemeValue=1,IF(gyakorisag=1,Éves,IF(gyakorisag=2,Féléves,IF(gyakorisag=3,Negyedéves,Havi))),\"\"))","v":"Havi"}]
[null,"Díjfizetés módja:"]
[null,"Szerződő pénzintézetének neve:",null,null,null,null,null,null,null,null,null,null,null,null,null,null,null,null,null,null,null,null,null,null,null,"Bankszámlaszáma:"]
[null,"Az UNION Biztosító bankszámlaszáma:",null,null,null,null,null,null,null,null,null,"Erste Bank Hungary Zrt.",null,null,null,null,null,null,"11600006-00000000-14544390"]
[]
[]
[]
[]
[]
[]
[]
[]
[]
[]
[]
[]
[]
[]
[]
[]
[null,"Szolgáltatások: Díjszámítás oldalon"]
[]
[]
[null,"Díjösszesítő - Éves díjak"]
[]
[]
[]
[]
[]
[]
[]
[null,"Szolgáltatásokat összesítő éves díj:",null,null,null,null,null,null,null,{"$f":"IF(SzerzNemeValue=1,IFERROR(Osszevdij,0),IF(SzerzNemeValue=2,IFERROR(Osszevdijjogi,0),0))","v":0},null,null,null,null,"Létszám miatti pótdíj / kedvezmény:",null,null,null,null,null,null,null,{"$f":"IF(SzerzNemeValue=1,IFERROR(LetszamKedv-1,0),IF(SzerzNemeValue=2,IFERROR(Letszamkedvjogi-1,0),0))","v":0},null,null,null,"Létszámmal korrigált éves díj: ",null,null,null,null,null,{"$f":"OsszCsoportDij*(LetszamKedvezmeny+1)","v":0}]
[null,"18 év alatti biztosítottak éves összdíja:",null,null,null,null,null,null,null,null,{"$f":"IF(SzerzNemeValue=1,Gyermekcsomag,0)","v":0},null,null,null,null,null,null,"Családi csomagok éves összdíja:",null,null,null,null,null,null,null,{"$f":"IF(SzerzNemeValue=2,CsaladiCsomagOssz,0)","v":{"$error":"#NAME?"}}]
[null,"Tehesgondozás extra éves díja:",null,null,null,null,null,null,{"$f":"IF(SzerzNemeValue=2,TerhesGond,0)","v":0},null,null,null,null,null,"Előzménybetegségek pótdíja:",null,null,null,null,null,null,{"$f":"IF(SzerzNemeValue=2,ElozmenyBetegPotdij,0)","v":0}]
[null,"Ősszes éves díj:",null,null,null,null,{"$f":"IF(cafeteria=3,\"--\",IF(SzerzNemeValue=2,evesdijjogi,IF(SzerzNemeValue=1,evesdij,0)))","v":0},null,null,null,null,null,null,"Gyakoriság szerint fizetendő díj:",null,null,null,null,null,null,null,{"$f":"IF(FizgyakValue=1,KorrigaltOsszEvesDij,IF(FizgyakValue=2,KorrigaltOsszEvesDij/2,IF(FizgyakValue=3,KorrigaltOsszEvesDij/4,IF(FizgyakValue=4,KorrigaltOsszEvesDij/12,))))","v":0}]
[]
[]
[]
[]
[]
[]
[]
[]
[]
[]
[]
[]
[]
[]
[]
[]
[]
[]
[null,"A biztosító az ajánlat elbírálása során egészségi kockázatfelmérést végezhet, amelyre tekintettel a kockázatelbírálási idő 60 nap. Jelen ajánlat aláírásával tudomásul veszem, hogy kockázatelbírálási idő alatt a biztosító jogosult az ajánlat visszautasítására még abban az esetben is, ha a biztosítási esemény bekövetkezik.\nJelen ajánlat aláírásával igazolom, hogy az ajánlat mellékletét képező Nyilatkozatot, Ügyfél-tájékoztatót valamint a PrivateMed Pro Általános és Különös Biztosítási Feltételeit átvettem."]
[]
[]
[]
[null,"Kijelentem, hogy az ajánlatot",null,null,null,null,null,null,null,null,null,null,null,null,null,null,null,null,null,null,null,null,null,null,null,null,null,null,null,null,null,"nevében eljárva kötöm meg."]
[]
[]
[]
[]
[]
[]
[null,"Kelt:",null,null,null,null,null,null,null,null,null,null,null,null,null,null,null," , ",{"$f":"AD162","v":2018},null,null,null,"év",{"$f":"AF162","v":1},null,null,null,null,null,"hó",{"$f":"AG162","v":25},null,"nap"]
[]
[]
[]
[]
[]
[]
[]
[]
[null,null,null,null,null,null,null,null,null,null,null,null,null,null,null,null,null,null,null,null,null,null,null,null,"Szerződő aláírása"]
[]
[null,"A szerződő azonosítását a törvényben előírtaknak megfelelően elvégeztem."]
[]
[null,null,null,null,null,null,null,null,null,null,null,null,null,null,null,null,null,null,null,null,null,"Biztosításközvetítő aláírása"]
[]
[]
[]
[]
[]
[null,null,null,"1. Biztosított aláírása",null,null,null,null,null,null,"2. Biztosított aláírása",null,null,null,null,null,null,"3. Biztosított aláírása",null,null,null,null,null,null,"4. Biztosított aláírása",null,null,null,null,null,null,"5. Biztosított aláírása"]
[]
[]
[null,null,null,"6. Biztosított aláírása",null,null,null,null,null,null,"7. Biztosított aláírása",null,null,null,null,null,null,"8. Biztosított aláírása",null,null,null,null,null,null,"9. Biztosított aláírása",null,null,null,null,null,null,"10. Biztosított aláírása"]
[]
[]
[null,null,null,"11. Biztosított aláírása",null,null,null,null,null,null,"12. Biztosított aláírása",null,null,null,null,null,null,"13. Biztosított aláírása",null,null,null,null,null,null,"14. Biztosított aláírása",null,null,null,null,null,null,"15. Biztosított aláírása"]
[]
[]
[]
[]
[]
[]
[]
[]
[]
[null,"2015.október 20."]
[]
[]
[]
[]
[]
[]
[]
[null,null,null,null,null,null,null,null,null,null,null,null,null,"Egészségi szűrő",null,null,null,null,null,null,null,null,"szerz"]
[null,null,null,null,null,null,null,null,null,null,null,null,null,"KÖZEPES",null,null,2,null,"Természetes személy",null,null,1,2,null,null,null,null,null,null,null,null,"Éves",{"$f":"IF(SzerzNemeValue=2,gyakorisagjogi,IF(SzerzNemeValue=1,gyakorisag,0))","v":4},null,"Díjfizetés módja"]
[null,null,null,null,null,null,null,null,null,null,null,null,null,"BŐVÍTETT",null,null,4,null,"Jogi személy",null,null,null,null,null,null,null,null,null,null,null,null,"Féléves",null,null,"Csekk",null,null,null,2]
[null,null,null,null,null,null,null,null,null,null,null,null,null,"SZEMÉLYRE SZABOTT ",null,null,4,null,null,null,null,null,null,null,null,null,null,null,null,null,null,"Negyedéves",null,null,"Banki átutalás"]
[null,null,null,null,null,null,null,null,null,null,null,null,null,"NEM",null,null,4,null,null,null,null,null,null,null,null,null,null,null,null,null,null,"Havi",null,null,"Csoportos beszedés"]
[]
[]
[null,null,null,null,null,null,null,null,null,null,1,null,null,null,null,null,null,null,null,"hozzájárulok",null,null,1,null,null,null,null,null,null,"Dátum"]
[null,null,null,null,null,null,null,null,null,null,1,null,null,null,null,null,null,null,null,"nem járulok hozzá",null,null,null,null,null,null,null,null,null,{"$f":"YEAR(TODAY())","v":2018},null,{"$f":"MONTH(TODAY())","v":1},{"$f":"DAY(TODAY())","v":25}]
[null,null,null,null,null,null,null,null,null,null,null,null,null,null,null,null,null,null,null,null,null,null,null,null,null,null,null,null,null,{"$f":"DATE(YEAR(TODAY()),MONTH(TODAY()),DAY(TODAY()))","v":"2018-01-25"}]
[null,null,null,null,null,null,null,null,null,null,1]
[null,null,null,null,null,"Okmány típusa",null,null,null,null,"szerz",null,"Foglalkozás",null,null,null,null,null,null,null,null,null,null,null,null,null,null,null,null,"2013-01-31",null,null,{"$f":"IF(AD165<AD163,\"A tarifáló érvényessége lejárt!\",\"fasza\")","v":"A tarifáló érvényessége lejárt!"}]
[null,null,null,null,null,"Személyigazolvány",null,null,null,null,1,null,"Alkalmazott",null,null,1]
[null,null,null,null,null,"Útlevél",null,null,null,null,1,null,"Önálló"]
[null,null,null,null,null,"Jogosítvány",null,null,null,null,null,null,"Egyéb"]
[null,null,null,null,null,null,null,null,null,null,1]
[]
[null,"Terhesgondozás",null,null,null,null,null,null,null,null,"Üzleti kedvezmény"]
[null,"igen",null,2,null,null,null,null,null,null,"igen",null,2]
[null,"nem",null,null,null,null,null,null,null,null,"nem"]
[]
[]
[]
[]
[null,null,null,null,null,null,null,null,null,null,1]
[null,null,null,null,null,null,null,null,null,"Cafeteria szerződés"]
[null,"hónapok:",null,null,null,null,null,null,null,"igen",null,1]
[null,"01",null,null,null,null,null,null,null,"nem"]
[null,"02"]
[null,"03"]
[null,"04"]
[null,"05"]
[null,"06"]
[null,"07"]
[null,"08"]
[null,"09"]
[null,"10"]
[null,"11"]
[null,"12"]

{"sheet":"Nyilatkozat","index":8,"n_rows":0,"n_cols":0,"rows_kept":0,"cut":false,"hidden":true,"merged":[]}

{"sheet":"Biztosítotti nyilatkozat","index":9,"n_rows":0,"n_cols":0,"rows_kept":0,"cut":false,"hidden":true,"merged":[]}

{"sheet":"Általános Biztosítási Feltétele","index":10,"n_rows":0,"n_cols":0,"rows_kept":0,"cut":false,"hidden":true,"merged":[]}

{"sheet":"Különös Biztosítási Feltételek","index":11,"n_rows":0,"n_cols":0,"rows_kept":0,"cut":false,"hidden":true,"merged":[]}

{"sheet":"Szolgáltatási limitek","index":12,"n_rows":0,"n_cols":0,"rows_kept":0,"cut":false,"hidden":true,"merged":[]}

{"sheet":"Ügyvféltájékoztató","index":13,"n_rows":0,"n_cols":0,"rows_kept":0,"cut":false,"hidden":true,"merged":[]}

{"sheet":"Kórházi csomag Különös Bizt. Fe","index":14,"n_rows":0,"n_cols":0,"rows_kept":0,"cut":false,"hidden":true,"merged":[]}

{"sheet":"Hope Plusz Különös Bizt. Felt.","index":15,"n_rows":0,"n_cols":0,"rows_kept":0,"cut":false,"hidden":true,"merged":[]}

{"sheet":"Záradék előzménybetegséghez","index":16,"n_rows":0,"n_cols":0,"rows_kept":0,"cut":false,"hidden":true,"merged":[]}

{"sheet":"Záradék Terhesgondozás extra","index":17,"n_rows":0,"n_cols":0,"rows_kept":0,"cut":false,"hidden":true,"merged":[]}